{"text_format":"1","workbook":"xlsx","n_sheets":7,"sheets":["ЖЕНСКИЕ ФУТБОЛКИ","ЖЕНСКИЕ ТОЛСТОВКИ","МУЖСКИЕ ФУТБОЛКИ И ТОЛСТОВКИ","ХУДИ","Таблица размеров","ДЕТЯМ","Толстовки с мехом унисекс"],"not_rendered":{"charts":0,"images":198,"macros":1,"external_links":0,"defined_names":0,"comments":0,"pivot_tables":0},"unopened":[],"bounds":{"document_bytes":16777216,"sheet_cells":100000,"rows_first":2000,"rows_last":500,"rows_between":2000,"halvings":0,"cell_chars":16384,"cell_head_chars":4096},"cells_cut":0,"cells_raw":0,"read":"whole","date_system":"1900"}

{"sheet":"ЖЕНСКИЕ ФУТБОЛКИ","index":0,"n_rows":636,"n_cols":23,"rows_kept":636,"cut":false,"hidden":false,"merged":[[0,11,0,12],[336,0,336,1],[336,2,336,3],[337,0,337,1],[337,2,337,3],[314,0,314,1],[314,2,314,3],[315,0,315,1],[315,2,315,3],[272,0,272,1],[272,2,272,3],[273,0,273,1],[273,2,273,3]]}
["Получатель:",null,null,null,null,null,null,null,null,null,null,"buytees.ru"]
["ИТОГО:",{"$f":"СумЦвет(A4:W638,W631)","v":0}]
[]
[]
[]
[null,null,null,null,null,null,"ЦЕНА:",null,null,null,null,null,null,null,"ЦЕНА:",null,null,null,null,null,null,null,"ЦЕНА:"]
[null,null,null,null,null,null,null,null,null,null,null,null,null,null,null,null,null,null,null,null,null,null,250]
[]
[]
[]
[null,null,null,null,null,null,"КОЛИЧ:",null,null,null,null,null,null,null,"КОЛИЧ:",null,null,null,null,null,null,null,"КОЛИЧ:"]
[null,null,null,null,null,null,{"$f":"A22+B22+C22+D22+E22+F22","v":0},null,null,null,null,null,null,null,{"$f":"I22+J22+K22+L22+M22+N22","v":0},null,null,null,null,null,null,null,{"$f":"Q22+R22+S22+T22+U22+V22","v":0}]
[]
[]
[null,null,null,null,null,null,"СУММА:",null,null,null,null,null,null,null,"СУММА:",null,null,null,null,null,null,null,"СУММА:"]
[null,null,null,null,null,null,{"$f":"G7*G12","v":0},null,null,null,null,null,null,null,{"$f":"O7*O12","v":0},null,null,null,null,null,null,null,{"$f":"W7*W12","v":0}]
[]
[]
[]
[]
["XS","S","M","L","XL",null,null,null,"XS","S","M","L",null,null,null,null,"XS","S","M","L","XL"]
[]
[]
[]
["Рябушка  ФЖ-СТ0127",null,null,null,null,null,null,null,"Котенок белый ФЖ-СТ0126",null,null,null,null,null,null,null,"Усатый кот ФЖВАР-СТ0021"]
[]
[null,null,null,null,null,null,"ЦЕНА:",null,null,null,null,null,null,null,"ЦЕНА:",null,null,null,null,null,null,null,"ЦЕНА:"]
[null,null,null,null,null,null,250,null,null,null,null,null,null,null,350,null,null,null,null,null,null,null,450]
[]
[]
[]
[null,null,null,null,null,null,"КОЛИЧ:",null,null,null,null,null,null,null,"КОЛИЧ:",null,null,null,null,null,null,null,"КОЛИЧ:"]
[null,null,null,null,null,null,{"$f":"A43+B43+C43+D43+E43+F43","v":0},null,null,null,null,null,null,null,{"$f":"I43+J43+K43+L43+M43+N43","v":0},null,null,null,null,null,null,null,{"$f":"Q43+R43+S43+T43+U43+V43","v":0}]
[]
[]
[null,null,null,null,null,null,"СУММА:",null,null,null,null,null,null,null,"СУММА:",null,null,null,null,null,null,null,"СУММА:"]
[null,null,null,null,null,null,{"$f":"G28*G33","v":0},null,null,null,null,null,null,null,{"$f":"O28*O33","v":0},null,null,null,null,null,null,null,{"$f":"W28*W33","v":0}]
[]
[]
[]
[]
["XS","S","M","L","XL",null,null,null,"XS","S","M","L",null,null,null,null,"XS","S","M","L","XL"]
[]
[]
[]
["Лягушка ФЖ-СТ0129",null,null,null,null,null,null,null,"Хамелеон ФЖВАР-СТ0023",null,null,null,null,null,null,null,"ФЖ-СТ0122 Жираф в очках салатовый"]
[]
[null,null,null,null,null,null,"ЦЕНА:",null,null,null,null,null,null,null,"ЦЕНА:",null,null,null,null,null,null,null,"ЦЕНА:"]
[null,null,null,null,null,null,450,null,null,null,null,null,null,null,450,null,null,null,null,null,null,null,350]
[]
[]
[]
[null,null,null,null,null,null,"КОЛИЧ:",null,null,null,null,null,null,null,"КОЛИЧ:",null,null,null,null,null,null,null,"КОЛИЧ:"]
[null,null,null,null,null,null,{"$f":"A64+B64+C64+D64+E64+F64","v":0},null,null,null,null,null,null,null,{"$f":"I64+J64+K64+L64+M64+N64","v":0},null,null,null,null,null,null,null,{"$f":"Q64+R64+S64+T64+U64+V64","v":0}]
[]
[]
[null,null,null,null,null,null,"СУММА:",null,null,null,null,null,null,null,"СУММА:",null,null,null,null,null,null,null,"СУММА:"]
[null,null,null,null,null,null,{"$f":"G49*G54","v":0},null,null,null,null,null,null,null,{"$f":"O49*O54","v":0},null,null,null,null,null,null,null,{"$f":"W49*W54","v":0}]
[]
[]
[]
[]
["XS","S","M","L","XL",null,null,null,"XS","S","M","L",null,null,null,null,"XS","S","M","L","XL"]
[]
[]
[]
["ФЖ-СТ0122 Жираф в очках голубой",null,null,null,null,null,null,null,"ФЖВАР-СТ0022 Пантера в листьях",null,null,null,null,null,null,null,"ФЖВАР-СТ0019 Собачка в сумочке"]
[]
[null,null,null,null,null,null,"ЦЕНА:",null,null,null,null,null,null,null,"ЦЕНА:",null,null,null,null,null,null,null,"ЦЕНА:"]
[null,null,null,null,null,null,350,null,null,null,null,null,null,null,450,null,null,null,null,null,null,null,450]
[]
[]
[]
[null,null,null,null,null,null,"КОЛИЧ:",null,null,null,null,null,null,null,"КОЛИЧ:",null,null,null,null,null,null,null,"КОЛИЧ:"]
[null,null,null,null,null,null,{"$f":"A85+B85+C85+D85+E85+F85","v":0},null,null,null,null,null,null,null,{"$f":"I85+J85+K85+L85+M85+N85","v":0},null,null,null,null,null,null,null,{"$f":"Q85+R85+S85+T85+U85+V85","v":0}]
[]
[]
[null,null,null,null,null,null,"СУММА:",null,null,null,null,null,null,null,"СУММА:",null,null,null,null,null,null,null,"СУММА:"]
[null,null,null,null,null,null,{"$f":"G70*G75","v":0},null,null,null,null,null,null,null,{"$f":"O70*O75","v":0},null,null,null,null,null,null,null,{"$f":"W70*W75","v":0}]
[]
[]
[]
[]
["XS","S","M","L","XL",null,null,null,"XS","S","M","L",null,null,null,null,"XS","S","M","L","XL"]
[]
[]
[]
["ФЖВАР-СТ0020 Котенок сиамский",null,null,null,null,null,null,null,"ФЖ-СТ0079 Чижег-пыжег синий",null,null,null,null,null,null,null,"ФЖ-СТ0079 Чижег-пыжег черный"]
[]
[null,null,null,null,null,null,"ЦЕНА:",null,null,null,null,null,null,null,"ЦЕНА:",null,null,null,null,null,null,null,"ЦЕНА:"]
[null,null,null,null,null,null,450,null,null,null,null,null,null,null,350,null,null,null,null,null,null,null,350]
[]
[]
[]
[null,null,null,null,null,null,"КОЛИЧ:",null,null,null,null,null,null,null,"КОЛИЧ:",null,null,null,null,null,null,null,"КОЛИЧ:"]
[null,null,null,null,null,null,{"$f":"A106+B106+C106+D106+E106+F106","v":0},null,null,null,null,null,null,null,{"$f":"I106+J106+K106+L106+M106+N106","v":0},null,null,null,null,null,null,null,{"$f":"Q106+R106+S106+T106+U106+V106","v":0}]
[]
[]
[null,null,null,null,null,null,"СУММА:",null,null,null,null,null,null,null,"СУММА:",null,null,null,null,null,null,null,"СУММА:"]
[null,null,null,null,null,null,{"$f":"G91*G96","v":0},null,null,null,null,null,null,null,{"$f":"O91*O96","v":0},null,null,null,null,null,null,null,{"$f":"W91*W96","v":0}]
[]
[]
[]
[]
["XS","S","M","L","XL",null,null,null,"XS","S","M","L",null,null,null,null,"XS","S","M","L","XL"]
[]
[]
[]
["ФЖ-СТ0121 Котенок сибирский ментол",null,null,null,null,null,null,null,"ФЖВАР-СТ0017 Игуана",null,null,null,null,null,null,null,"ФЖВАР-СТ0018 Йоркширский терьер"]
[]
[null,null,null,null,null,null,"ЦЕНА:",null,null,null,null,null,null,null,"ЦЕНА:",null,null,null,null,null,null,null,"ЦЕНА:"]
[null,null,null,null,null,null,350,null,null,null,null,null,null,null,450,null,null,null,null,null,null,null,450]
[]
[]
[]
[null,null,null,null,null,null,"КОЛИЧ:",null,null,null,null,null,null,null,"КОЛИЧ:",null,null,null,null,null,null,null,"КОЛИЧ:"]
[null,null,null,null,null,null,{"$f":"A127+B127+C127+D127+E127+F127","v":0},null,null,null,null,null,null,null,{"$f":"I127+J127+K127+L127+M127+N127","v":0},null,null,null,null,null,null,null,{"$f":"Q127+R127+S127+T127+U127+V127","v":0}]
[]
[]
[null,null,null,null,null,null,"СУММА:",null,null,null,null,null,null,null,"СУММА:",null,null,null,null,null,null,null,"СУММА:"]
[null,null,null,null,null,null,{"$f":"G112*G117","v":0},null,null,null,null,null,null,null,{"$f":"O112*O117","v":0},null,null,null,null,null,null,null,{"$f":"W112*W117","v":0}]
[]
[]
[]
[]
["XS","S","M","L","XL",null,null,null,"XS","S","M","L",null,null,null,null,"XS","S","M","L","XL"]
[]
[]
[]
["ФЖВАР-СТ0016 Злой леопард ",null,null,null,null,null,null,null,"ФЖВАР-СТ0012 Волк в наушниках",null,null,null,null,null,null,null,"ФЖ-СТ0113 Паук"]
[]
[null,null,null,null,null,null,"ЦЕНА:",null,null,null,null,null,null,null,"ЦЕНА:",null,null,null,null,null,null,null,"ЦЕНА:"]
[null,null,null,null,null,null,450,null,null,null,null,null,null,null,450,null,null,null,null,null,null,null,350]
[]
[]
[]
[null,null,null,null,null,null,"КОЛИЧ:",null,null,null,null,null,null,null,"КОЛИЧ:",null,null,null,null,null,null,null,"КОЛИЧ:"]
[null,null,null,null,null,null,{"$f":"A148+B148+C148+D148+E148+F148","v":0},null,null,null,null,null,null,null,{"$f":"I148+J148+K148+L148+M148+N148","v":0},null,null,null,null,null,null,null,{"$f":"Q148+R148+S148+T148+U148+V148","v":0}]
[]
[]
[null,null,null,null,null,null,"СУММА:",null,null,null,null,null,null,null,"СУММА:",null,null,null,null,null,null,null,"СУММА:"]
[null,null,null,null,null,null,{"$f":"G133*G138","v":0},null,null,null,null,null,null,null,{"$f":"O133*O138","v":0},null,null,null,null,null,null,null,{"$f":"W133*W138","v":0}]
[]
[]
[]
[]
["XS","S","M","L","XL",null,null,null,"XS","S","M","L",null,null,null,null,"XS","S","M","L","XL"]
[]
[]
[]
[]
[]
[null,null,null,null,null,null,"ЦЕНА:",null,null,null,null,null,null,null,"ЦЕНА:",null,null,null,null,null,null,null,"ЦЕНА:"]
[null,null,null,null,null,null,350,null,null,null,null,null,null,null,350]
[]
[]
[]
[null,null,null,null,null,null,"КОЛИЧ:",null,null,null,null,null,null,null,"КОЛИЧ:",null,null,null,null,null,null,null,"КОЛИЧ:"]
[null,null,null,null,null,null,{"$f":"A169+B169+C169+D169+E169+F169","v":0},null,null,null,null,null,null,null,{"$f":"I169+J169+K169+L169+M169+N169","v":0},null,null,null,null,null,null,null,{"$f":"Q169+R169+S169+T169+U169+V169","v":0}]
[]
[]
[null,null,null,null,null,null,"СУММА:",null,null,null,null,null,null,null,"СУММА:",null,null,null,null,null,null,null,"СУММА:"]
[null,null,null,null,null,null,{"$f":"G154*G159","v":0},null,null,null,null,null,null,null,{"$f":"O154*O159","v":0},null,null,null,null,null,null,null,{"$f":"W154*W159","v":0}]
[]
[]
[]
[]
["XS","S","M","L","XL",null,null,null,"XS","S","M","L",null,null,null,null,"XS","S","M","L","XL"]
[]
[]
[]
["ФЖВАР-СТ0013 Лиса",null,null,null,null,null,null,null,"ФЖВАР-СТ0014 Кот в очках ",null,null,null,null,null,null,null,"ФЖ-СТ0076 Цветная кошка салатовый"]
[]
[null,null,null,null,null,null,"ЦЕНА:",null,null,null,null,null,null,null,"ЦЕНА:",null,null,null,null,null,null,null,"ЦЕНА:"]
[null,null,null,null,null,null,450,null,null,null,null,null,null,null,450,null,null,null,null,null,null,null,350]
[]
[]
[]
[null,null,null,null,null,null,"КОЛИЧ:",null,null,null,null,null,null,null,"КОЛИЧ:",null,null,null,null,null,null,null,"КОЛИЧ:"]
[null,null,null,null,null,null,{"$f":"A190+B190+C190+D190+E190+F190","v":0},null,null,null,null,null,null,null,{"$f":"I190+J190+K190+L190+M190+N190","v":0},null,null,null,null,null,null,null,{"$f":"Q190+R190+S190+T190+U190+V190","v":0}]
[]
[]
[null,null,null,null,null,null,"СУММА:",null,null,null,null,null,null,null,"СУММА:",null,null,null,null,null,null,null,"СУММА:"]
[null,null,null,null,null,null,{"$f":"G175*G180","v":0},null,null,null,null,null,null,null,{"$f":"O175*O180","v":0},null,null,null,null,null,null,null,{"$f":"W175*W180","v":0}]
[]
[]
[]
[]
["XS","S","M","L","XL",null,null,null,"XS","S","M","L",null,null,null,null,"XS","S","M","L","XL"]
[]
[]
[]
["ФЖ-СТ0076 Цветная кошка зеленый",null,null,null,null,null,null,null,null,null,null,null,null,null,null,null,"ФЖВАР-СТ0015 3 Больших черепахи"]
[]
[null,null,null,null,null,null,"ЦЕНА:",null,null,null,null,null,null,null,"ЦЕНА:",null,null,null,null,null,null,null,"ЦЕНА:"]
[null,null,null,null,null,null,350,null,null,null,null,null,null,null,null,null,null,null,null,null,null,null,450]
[]
[]
[]
[null,null,null,null,null,null,"КОЛИЧ:",null,null,null,null,null,null,null,"КОЛИЧ:",null,null,null,null,null,null,null,"КОЛИЧ:"]
[null,null,null,null,null,null,{"$f":"A211+B211+C211+D211+E211+F211","v":0},null,null,null,null,null,null,null,{"$f":"I211+J211+K211+L211+M211+N211","v":0},null,null,null,null,null,null,null,{"$f":"Q211+R211+S211+T211+U211+V211","v":0}]
[]
[]
[null,null,null,null,null,null,"СУММА:",null,null,null,null,null,null,null,"СУММА:",null,null,null,null,null,null,null,"СУММА:"]
[null,null,null,null,null,null,{"$f":"G196*G201","v":0},null,null,null,null,null,null,null,{"$f":"O196*O201","v":0},null,null,null,null,null,null,null,{"$f":"W196*W201","v":0}]
[]
[]
[]
[]
["XS","S","M","L","XL",null,null,null,"XS","S","M","L",null,null,null,null,"XS","S","M","L","XL"]
[]
[]
[]
["ФЖВАР-СТ0011 Черепашки",null,null,null,null,null,null,null,"ФЖ-СТ0115 Пират",null,null,null,null,null,null,null,"ФЖВАР-СТ0010 Барс"]
[]
[null,null,null,null,null,null,"ЦЕНА:",null,null,null,null,null,null,null,"ЦЕНА:",null,null,null,null,null,null,null,"ЦЕНА:"]
[null,null,null,null,null,null,450,null,null,null,null,null,null,null,350,null,null,null,null,null,null,null,450]
[]
[]
[]
[null,null,null,null,null,null,"КОЛИЧ:",null,null,null,null,null,null,null,"КОЛИЧ:",null,null,null,null,null,null,null,"КОЛИЧ:"]
[null,null,null,null,null,null,{"$f":"A232+B232+C232+D232+E232+F232","v":0},null,null,null,null,null,null,null,{"$f":"I232+J232+K232+L232+M232+N232","v":0},null,null,null,null,null,null,null,{"$f":"Q232+R232+S232+T232+U232+V232","v":0}]
[]
[]
[null,null,null,null,null,null,"СУММА:",null,null,null,null,null,null,null,"СУММА:",null,null,null,null,null,null,null,"СУММА:"]
[null,null,null,null,null,null,{"$f":"G217*G222","v":0},null,null,null,null,null,null,null,{"$f":"O217*O222","v":0},null,null,null,null,null,null,null,{"$f":"W217*W222","v":0}]
[]
[]
[]
[]
["XS","S","M","L","XL",null,null,null,"XS","S","M","L",null,null,null,null,"XS","S","M","L","XL"]
[]
[]
[]
[]
["ФЖВАР-СТ0009 Ящерица",null,null,null,null,null,null,null,"ФЖВАР-СТ0008 Щенок Лабрадор",null,null,null,null,null,null,null,"ФЖВАР-СТ0006 Зебра"]
[]
[null,null,null,null,null,null,"ЦЕНА:",null,null,null,null,null,null,null,"ЦЕНА:",null,null,null,null,null,null,null,"ЦЕНА:"]
[null,null,null,null,null,null,450,null,null,null,null,null,null,null,450,null,null,null,null,null,null,null,450]
[]
[]
[]
[null,null,null,null,null,null,"КОЛИЧ:",null,null,null,null,null,null,null,"КОЛИЧ:",null,null,null,null,null,null,null,"КОЛИЧ:"]
[null,null,null,null,null,null,{"$f":"A254+B254+C254+D254+E254+F254","v":0},null,null,null,null,null,null,null,{"$f":"I254+J254+K254+L254+M254+N254","v":0},null,null,null,null,null,null,null,{"$f":"Q254+R254+S254+T254+U254+V254","v":0}]
[]
[]
[null,null,null,null,null,null,"СУММА:",null,null,null,null,null,null,null,"СУММА:",null,null,null,null,null,null,null,"СУММА:"]
[null,null,null,null,null,null,{"$f":"G239*G244","v":0},null,null,null,null,null,null,null,{"$f":"O239*O244","v":0},null,null,null,null,null,null,null,{"$f":"W239*W244","v":0}]
[]
[]
[]
[]
["XS","S","M","L","XL",null,null,null,"XS","S","M","L","XL",null,null,null,"XS","S","M","L","XL"]
[]
[]
[]
["ФЖВАР-СТ Синие цветы",null,null,null,null,null,null,null,null,null,null,null,null,null,null,null,"ФЖ-СТ0111 Пауэр Вордино"]
[]
[null,null,null,null,null,null,"ЦЕНА:",null,null,null,null,null,null,null,"ЦЕНА:",null,null,null,null,null,null,null,"ЦЕНА:"]
[null,null,null,null,null,null,400,null,null,null,null,null,null,null,null,null,null,null,null,null,null,null,350]
[]
[]
[]
[null,null,null,null,null,null,"КОЛИЧ:",null,null,null,null,null,null,null,"КОЛИЧ:",null,null,null,null,null,null,null,"КОЛИЧ:"]
[null,null,null,null,null,null,{"$f":"A274+C274","v":0},null,null,null,null,null,null,null,{"$f":"I275+J275+K275+L275+M275+N275","v":0},null,null,null,null,null,null,null,{"$f":"Q275+R275+S275+T275+U275+V275","v":0}]
[]
[]
[null,null,null,null,null,null,"СУММА:",null,null,null,null,null,null,null,"СУММА:",null,null,null,null,null,null,null,"СУММА:"]
[null,null,null,null,null,null,{"$f":"G260*G265","v":0},null,null,null,null,null,null,null,{"$f":"O260*O265","v":0},null,null,null,null,null,null,null,{"$f":"W260*W265","v":0}]
[]
[]
[]
["medium (S, M)",null,"large (L)"]
[null,null,null,null,null,null,null,null,"XS","S","M","L","XL",null,null,null,"XS","S","M","L","XL"]
[]
[]
[]
["ФМ-СТ0058 Путин черная",null,null,null,null,null,null,null,"ФЖ-СТ0003 Пантера",null,null,null,null,null,null,null,"ФЖ-СТ0002 ПАНДА"]
[]
[null,null,null,null,null,null,"ЦЕНА:",null,null,null,null,null,null,null,"ЦЕНА:",null,null,null,null,null,null,null,"ЦЕНА:"]
[null,null,null,null,null,null,350,null,null,null,null,null,null,null,450,null,null,null,null,null,null,null,450]
[]
[]
[]
[null,null,null,null,null,null,"КОЛИЧ:",null,null,null,null,null,null,null,"КОЛИЧ:",null,null,null,null,null,null,null,"КОЛИЧ:"]
[null,null,null,null,null,null,{"$f":"A296+B296+C296+D296+E296+F296","v":0},null,null,null,null,null,null,null,{"$f":"I296+J296+K296+L296+M296+N296","v":0},null,null,null,null,null,null,null,{"$f":"Q296+R296+S296+T296+U296+V296","v":0}]
[]
[]
[null,null,null,null,null,null,"СУММА:",null,null,null,null,null,null,null,"СУММА:",null,null,null,null,null,null,null,"СУММА:"]
[null,null,null,null,null,null,{"$f":"G281*G286","v":0},null,null,null,null,null,null,null,{"$f":"O281*O286","v":0},null,null,null,null,null,null,null,{"$f":"W281*W286","v":0}]
[]
[]
[]
[]
["XS","S","M","L",null,null,null,null,"XS","S","M","L","XL",null,null,null,"XS","S","M","L","XL"]
[]
[]
[]
["ФЖБ-CT0001 Ромашка",null,null,null,null,null,null,null,null,null,null,null,null,null,null,null,"ФЖ-СТ0103 Жар-птица"]
[]
[null,null,null,null,null,null,"ЦЕНА:",null,null,null,null,null,null,null,"ЦЕНА:",null,null,null,null,null,null,null,"ЦЕНА:"]
[null,null,null,null,null,null,400,null,null,null,null,null,null,null,null,null,null,null,null,null,null,null,350]
[]
[]
[]
[null,null,null,null,null,null,"КОЛИЧ:",null,null,null,null,null,null,null,"КОЛИЧ:",null,null,null,null,null,null,null,"КОЛИЧ:"]
[null,null,null,null,null,null,{"$f":"A316+C316","v":0},null,null,null,null,null,null,null,{"$f":"I317+J317+K317+L317+M317+N317","v":0},null,null,null,null,null,null,null,{"$f":"Q317+R317+S317+T317+U317+V317","v":0}]
[]
[]
[null,null,null,null,null,null,"СУММА:",null,null,null,null,null,null,null,"СУММА:",null,null,null,null,null,null,null,"СУММА:"]
[null,null,null,null,null,null,{"$f":"G302*G307","v":0},null,null,null,null,null,null,null,{"$f":"O302*O307","v":0},null,null,null,null,null,null,null,{"$f":"W302*W307","v":0}]
[]
[]
[]
["medium (S, M)",null,"large (L)"]
[null,null,null,null,null,null,null,null,"XS","S","M","L","XL",null,null,null,"XS","S","M","L","XL"]
[]
[]
[]
["ФЖБ-CT0002 Маки",null,null,null,null,null,null,null,"ФЖ-СТ0106 Котенок Гав",null,null,null,null,null,null,null,"ФЖ- Кошка"]
[]
[null,null,null,null,null,null,"ЦЕНА:",null,null,null,null,null,null,null,"ЦЕНА:",null,null,null,null,null,null,null,"ЦЕНА:"]
[null,null,null,null,null,null,400,null,null,null,null,null,null,null,350,null,null,null,null,null,null,null,450]
[]
[]
[]
[null,null,null,null,null,null,"КОЛИЧ:",null,null,null,null,null,null,null,"КОЛИЧ:",null,null,null,null,null,null,null,"КОЛИЧ:"]
[null,null,null,null,null,null,{"$f":"A338+C338","v":0},null,null,null,null,null,null,null,{"$f":"I338+J338+K338+L338+M338+N338","v":0},null,null,null,null,null,null,null,{"$f":"Q338+R338+S338+T338+U338+V338","v":0}]
[]
[]
[null,null,null,null,null,null,"СУММА:",null,null,null,null,null,null,null,"СУММА:",null,null,null,null,null,null,null,"СУММА:"]
[null,null,null,null,null,null,{"$f":"G323*G328","v":0},null,null,null,null,null,null,null,{"$f":"O323*O328","v":0},null,null,null,null,null,null,null,{"$f":"W323*W328","v":0}]
[]
[]
[]
[]
["medium (S, M)",null,"large (L)",null,null,null,null,null,"XS","S","M","L",null,null,null,null,"XS","S","M","L","XL"]
[]
[]
[]
["ФЖВАР-СТ0005 Сова синий",null,null,null,null,null,null,null,"ФЖВАР-СТ0004 Леопард"]
[]
[null,null,null,null,null,null,"ЦЕНА:",null,null,null,null,null,null,null,"ЦЕНА:",null,null,null,null,null,null,null,"ЦЕНА:"]
[null,null,null,null,null,null,450,null,null,null,null,null,null,null,450]
[]
[]
[]
[null,null,null,null,null,null,"КОЛИЧ:",null,null,null,null,null,null,null,"КОЛИЧ:",null,null,null,null,null,null,null,"КОЛИЧ:"]
[null,null,null,null,null,null,{"$f":"A359+B359+C359+D359+E359+F359","v":0},null,null,null,null,null,null,null,{"$f":"I359+J359+K359+L359+M359+N359","v":0},null,null,null,null,null,null,null,{"$f":"Q359+R359+S359+T359+U359+V359","v":0}]
[]
[]
[null,null,null,null,null,null,"СУММА:",null,null,null,null,null,null,null,"СУММА:",null,null,null,null,null,null,null,"СУММА:"]
[null,null,null,null,null,null,{"$f":"G344*G349","v":0},null,null,null,null,null,null,null,{"$f":"O344*O349","v":0},null,null,null,null,null,null,null,{"$f":"W344*W349","v":0}]
[]
[]
[]
[]
["XS","S","M","L",null,null,null,null,"XS","S","M","L","XL",null,null,null,"XS","S","M","L","XL"]
[]
[]
[]
["ФЖ-СТ0097 Гжель",null,null,null,null,null,null,null,"ФЖ-СТ0096 Котята",null,null,null,null,null,null,null,"ФЖ-CT0084 Кейт Мосс"]
[]
[null,null,null,null,null,null,"ЦЕНА:",null,null,null,null,null,null,null,"ЦЕНА:",null,null,null,null,null,null,null,"ЦЕНА:"]
[null,null,null,null,null,null,350,null,null,null,null,null,null,null,350,null,null,null,null,null,null,null,350]
[]
[]
[]
[null,null,null,null,null,null,"КОЛИЧ:",null,null,null,null,null,null,null,"КОЛИЧ:",null,null,null,null,null,null,null,"КОЛИЧ:"]
[null,null,null,null,null,null,{"$f":"A380+B380+C380+D380+E380+F380","v":0},null,null,null,null,null,null,null,{"$f":"I380+J380+K380+L380+M380+N380","v":0},null,null,null,null,null,null,null,{"$f":"Q380+R380+S380+T380+U380+V380","v":0}]
[]
[]
[null,null,null,null,null,null,"СУММА:",null,null,null,null,null,null,null,"СУММА:",null,null,null,null,null,null,null,"СУММА:"]
[null,null,null,null,null,null,{"$f":"G365*G370","v":0},null,null,null,null,null,null,null,{"$f":"O365*O370","v":0},null,null,null,null,null,null,null,{"$f":"W365*W370","v":0}]
[]
[]
[]
[]
["XS","S","M","L",null,null,null,null,"XS","S","M","L",null,null,null,null,"XS","S","M","L","XL"]
[]
[]
[]
["ФЖ-СТ0092 Лошадка",null,null,null,null,null,null,null,"ФЖ-СТ0020 Желтый мишка"]
[]
[null,null,null,null,null,null,"ЦЕНА:",null,null,null,null,null,null,null,"ЦЕНА:",null,null,null,null,null,null,null,"ЦЕНА:"]
[null,null,null,null,null,null,350,null,null,null,null,null,null,null,350,null,null,null,null,null,null,null,350]
[]
[]
[]
[null,null,null,null,null,null,"КОЛИЧ:",null,null,null,null,null,null,null,"КОЛИЧ:",null,null,null,null,null,null,null,"КОЛИЧ:"]
[null,null,null,null,null,null,{"$f":"A401+B401+C401+D401+E401+F401","v":0},null,null,null,null,null,null,null,{"$f":"I401+J401+K401+L401+M401+N401","v":0},null,null,null,null,null,null,null,{"$f":"Q401+R401+S401+T401+U401+V401","v":0}]
[]
[]
[null,null,null,null,null,null,"СУММА:",null,null,null,null,null,null,null,"СУММА:",null,null,null,null,null,null,null,"СУММА:"]
[null,null,null,null,null,null,{"$f":"G386*G391","v":0},null,null,null,null,null,null,null,{"$f":"O386*O391","v":0},null,null,null,null,null,null,null,{"$f":"W386*W391","v":0}]
[]
[]
[]
[]
["XS","S","M","L","XL",null,null,null,"XS","S","M","L","XL",null,null,null,"XS","S","M","L","XL"]
[]
[]
[]
["ФЖ-СТ0044 Моника Белучи черная",null,null,null,null,null,null,null,"ФЖ-СТ0093 Мопс",null,null,null,null,null,null,null,"ФЖ-СТ0099 Молния"]
[]
[null,null,null,null,null,null,"ЦЕНА:",null,null,null,null,null,null,null,"ЦЕНА:",null,null,null,null,null,null,null,"ЦЕНА:"]
[null,null,null,null,null,null,350,null,null,null,null,null,null,null,350,null,null,null,null,null,null,null,350]
[]
[]
[]
[null,null,null,null,null,null,"КОЛИЧ:",null,null,null,null,null,null,null,"КОЛИЧ:",null,null,null,null,null,null,null,"КОЛИЧ:"]
[null,null,null,null,null,null,{"$f":"A422+B422+C422+D422+E422+F422","v":0},null,null,null,null,null,null,null,{"$f":"I422+J422+K422+L422+M422+N422","v":0},null,null,null,null,null,null,null,{"$f":"Q422+R422+S422+T422+U422+V422","v":0}]
[]
[]
[null,null,null,null,null,null,"СУММА:",null,null,null,null,null,null,null,"СУММА:",null,null,null,null,null,null,null,"СУММА:"]
[null,null,null,null,null,null,{"$f":"G407*G412","v":0},null,null,null,null,null,null,null,{"$f":"O407*O412","v":0},null,null,null,null,null,null,null,{"$f":"W407*W412","v":0}]
[]
[]
[]
[]
["XS","S","M","L",null,null,null,null,"XS","S","M","L",null,null,null,null,"XS","S","M","L","XL"]
[]
[]
[]
[]
["ФЖ Лошадь белая",null,null,null,null,null,null,null,"ФЖ-СТ0003  Кам тугеза",null,null,null,null,null,null,null,"ФЖ-СТ0050 Натали Портман"]
[]
[null,null,null,null,null,null,"ЦЕНА:",null,null,null,null,null,null,null,"ЦЕНА:",null,null,null,null,null,null,null,"ЦЕНА:"]
[null,null,null,null,null,null,350,null,null,null,null,null,null,null,350,null,null,null,null,null,null,null,350]
[]
[]
[]
[null,null,null,null,null,null,"КОЛИЧ:",null,null,null,null,null,null,null,"КОЛИЧ:",null,null,null,null,null,null,null,"КОЛИЧ:"]
[null,null,null,null,null,null,{"$f":"A444+B444+C444+D444+E444+F444","v":0},null,null,null,null,null,null,null,{"$f":"I444+J444+K444+L444+M444+N444","v":0},null,null,null,null,null,null,null,{"$f":"Q444+R444+S444+T444+U444+V444","v":0}]
[]
[]
[null,null,null,null,null,null,"СУММА:",null,null,null,null,null,null,null,"СУММА:",null,null,null,null,null,null,null,"СУММА:"]
[null,null,null,null,null,null,{"$f":"G429*G434","v":0},null,null,null,null,null,null,null,{"$f":"O429*O434","v":0},null,null,null,null,null,null,null,{"$f":"W429*W434","v":0}]
[]
[]
[]
[]
["XS","S","M","L",null,null,null,null,"XS","S","M","L","XL",null,null,null,"XS","S","M","L"]
[]
[]
[]
["ФЖ-СТ0003 Бабочка белая",null,null,null,null,null,null,null,"ФЖ-СТ0009 Горилаз",null,null,null,null,null,null,null,"ФЖ-СТ0043 Мишка Лав"]
[]
[null,null,null,null,null,null,"ЦЕНА:",null,null,null,null,null,null,null,"ЦЕНА:",null,null,null,null,null,null,null,"ЦЕНА:"]
[null,null,null,null,null,null,350,null,null,null,null,null,null,null,350,null,null,null,null,null,null,null,350]
[]
[]
[]
[null,null,null,null,null,null,"КОЛИЧ:",null,null,null,null,null,null,null,"КОЛИЧ:",null,null,null,null,null,null,null,"КОЛИЧ:"]
[null,null,null,null,null,null,{"$f":"A465+B465+C465+D465+E465+F465","v":0},null,null,null,null,null,null,null,{"$f":"I465+J465+K465+L465+M465+N465","v":0},null,null,null,null,null,null,null,{"$f":"Q465+R465+S465+T465+U465+V465","v":0}]
[]
[]
[null,null,null,null,null,null,"СУММА:",null,null,null,null,null,null,null,"СУММА:",null,null,null,null,null,null,null,"СУММА:"]
[null,null,null,null,null,null,{"$f":"G450*G455","v":0},null,null,null,null,null,null,null,{"$f":"O450*O455","v":0},null,null,null,null,null,null,null,{"$f":"W450*W455","v":0}]
[]
[]
[]
[]
["XS","S","M","L","XL",null,null,null,"XS","S","M","L",null,null,null,null,"XS","S","M","L","XL"]
[]
[]
[]
[null,null,null,null,null,null,null,null,"ФЖ-СТ0040 Минни Хелп",null,null,null,null,null,null,null,"ФЖ-СТ0068 Уже не нужно Ни Че"]
[]
[null,null,null,null,null,null,"ЦЕНА:",null,null,null,null,null,null,null,"ЦЕНА:",null,null,null,null,null,null,null,"ЦЕНА:"]
[null,null,null,null,null,null,null,null,null,null,null,null,null,null,350,null,null,null,null,null,null,null,350]
[]
[]
[]
[null,null,null,null,null,null,"КОЛИЧ:",null,null,null,null,null,null,null,"КОЛИЧ:",null,null,null,null,null,null,null,"КОЛИЧ:"]
[null,null,null,null,null,null,{"$f":"A486+B486+C486+D486+E486+F486","v":0},null,null,null,null,null,null,null,{"$f":"I486+J486+K486+L486+M486+N486","v":0},null,null,null,null,null,null,null,{"$f":"Q486+R486+S486+T486+U486+V486","v":0}]
[]
[]
[null,null,null,null,null,null,"СУММА:",null,null,null,null,null,null,null,"СУММА:",null,null,null,null,null,null,null,"СУММА:"]
[null,null,null,null,null,null,{"$f":"G471*G476","v":0},null,null,null,null,null,null,null,{"$f":"O471*O476","v":0},null,null,null,null,null,null,null,{"$f":"W471*W476","v":0}]
[]
[]
[]
[]
["XS","S","M","L",null,null,null,null,"XS","S","M","L",null,null,null,null,"XS","S","M","L"]
[]
[]
[]
[]
["ФЖ-СТ0018 Ежик",null,null,null,null,null,null,null,"ФЖ-СТ0037 Мерседес",null,null,null,null,null,null,null,"ФЖ-СТ0060 Сделано в СССР"]
[]
[null,null,null,null,null,null,"ЦЕНА:",null,null,null,null,null,null,null,"ЦЕНА:",null,null,null,null,null,null,null,"ЦЕНА:"]
[null,null,null,null,null,null,350,null,null,null,null,null,null,null,350,null,null,null,null,null,null,null,350]
[]
[]
[]
[null,null,null,null,null,null,"КОЛИЧ:",null,null,null,null,null,null,null,"КОЛИЧ:",null,null,null,null,null,null,null,"КОЛИЧ:"]
[null,null,null,null,null,null,{"$f":"A508+B508+C508+D508+E508+F508","v":0},null,null,null,null,null,null,null,{"$f":"I508+J508+K508+L508+M508+N508","v":0},null,null,null,null,null,null,null,{"$f":"Q508+R508+S508+T508+U508+V508","v":0}]
[]
[]
[null,null,null,null,null,null,"СУММА:",null,null,null,null,null,null,null,"СУММА:",null,null,null,null,null,null,null,"СУММА:"]
[null,null,null,null,null,null,{"$f":"G493*G498","v":0},null,null,null,null,null,null,null,{"$f":"O493*O498","v":0},null,null,null,null,null,null,null,{"$f":"W493*W498","v":0}]
[]
[]
[]
[]
["XS","S","M","L","XL",null,null,null,"XS","S","M","L",null,null,null,null,"XS","S","M","L","XL"]
[]
[]
[]
["ФЖ-СТ0070 Фак экономи",null,null,null,null,null,null,null,"ФЖ-СТ0024 Злой Микки",null,null,null,null,null,null,null,"ФЖ-СТ0083 Пятачок"]
[]
[null,null,null,null,null,null,"ЦЕНА:",null,null,null,null,null,null,null,"ЦЕНА:",null,null,null,null,null,null,null,"ЦЕНА:"]
[null,null,null,null,null,null,350,null,null,null,null,null,null,null,350,null,null,null,null,null,null,null,350]
[]
[]
[]
[null,null,null,null,null,null,"КОЛИЧ:",null,null,null,null,null,null,null,"КОЛИЧ:",null,null,null,null,null,null,null,"КОЛИЧ:"]
[null,null,null,null,null,null,{"$f":"A529+B529+C529+D529+E529+F529","v":0},null,null,null,null,null,null,null,{"$f":"I529+J529+K529+L529+M529+N529","v":0},null,null,null,null,null,null,null,{"$f":"Q529+R529+S529+T529+U529+V529","v":0}]
[]
[]
[null,null,null,null,null,null,"СУММА:",null,null,null,null,null,null,null,"СУММА:",null,null,null,null,null,null,null,"СУММА:"]
[null,null,null,null,null,null,{"$f":"G514*G519","v":0},null,null,null,null,null,null,null,{"$f":"O514*O519","v":0},null,null,null,null,null,null,null,{"$f":"W514*W519","v":0}]
[]
[]
[]
[]
["XS","S","M","L",null,null,null,null,"XS","S","M","L",null,null,null,null,"XS","S","M","L"]
[]
[]
[]
["ФЖ-СТ0078 Черепа",null,null,null,null,null,null,null,"ФЖ-СТ0033 Кролик",null,null,null,null,null,null,null,"ФЖ-СТ000 Таити"]
[]
[null,null,null,null,null,null,"ЦЕНА:",null,null,null,null,null,null,null,"ЦЕНА:",null,null,null,null,null,null,null,"ЦЕНА:"]
[null,null,null,null,null,null,350,null,null,null,null,null,null,null,350,null,null,null,null,null,null,null,350]
[]
[]
[]
[null,null,null,null,null,null,"КОЛИЧ:",null,null,null,null,null,null,null,"КОЛИЧ:",null,null,null,null,null,null,null,"КОЛИЧ:"]
[null,null,null,null,null,null,{"$f":"A550+B550+C550+D550+E550+F550","v":0},null,null,null,null,null,null,null,{"$f":"I550+J550+K550+L550+M550+N550","v":0},null,null,null,null,null,null,null,{"$f":"Q550+R550+S550+T550+U550+V550","v":0}]
[]
[]
[null,null,null,null,null,null,"СУММА:",null,null,null,null,null,null,null,"СУММА:",null,null,null,null,null,null,null,"СУММА:"]
[null,null,null,null,null,null,{"$f":"G535*G540","v":0},null,null,null,null,null,null,null,{"$f":"O535*O540","v":0},null,null,null,null,null,null,null,{"$f":"W535*W540","v":0}]
[]
[]
[]
[]
["XS","S","M","L","XL",null,null,null,"XS","S","M","L",null,null,null,null,"XS","S","M","L"]
[]
[]
[]
[]
["ФЖ  Мур Мур Мяу",null,null,null,null,null,null,null,"ФЖ-СТ0017 Дрю Бокс",null,null,null,null,null,null,null," ФЖ-СТ0049 Мышка"]
[]
[null,null,null,null,null,null,"ЦЕНА:",null,null,null,null,null,null,null,"ЦЕНА:",null,null,null,null,null,null,null,"ЦЕНА:"]
[null,null,null,null,null,null,350,null,null,null,null,null,null,null,350,null,null,null,null,null,null,null,350]
[]
[]
[]
[null,null,null,null,null,null,"КОЛИЧ:",null,null,null,null,null,null,null,"КОЛИЧ:",null,null,null,null,null,null,null,"КОЛИЧ:"]
[null,null,null,null,null,null,{"$f":"A572+B572+C572+D572+E572+F572","v":0},null,null,null,null,null,null,null,{"$f":"I572+J572+K572+L572+M572+N572","v":0},null,null,null,null,null,null,null,{"$f":"Q572+R572+S572+T572+U572+V572","v":0}]
[]
[]
[null,null,null,null,null,null,"СУММА:",null,null,null,null,null,null,null,"СУММА:",null,null,null,null,null,null,null,"СУММА:"]
[null,null,null,null,null,null,{"$f":"G557*G562","v":0},null,null,null,null,null,null,null,{"$f":"O557*O562","v":0},null,null,null,null,null,null,null,{"$f":"W557*W562","v":0}]
[]
[]
[]
[]
["XS","S","M","L","XL",null,null,null,"XS","S","M","L",null,null,null,null,"XS","S","M","L","XL"]
[]
[]
[]
[]
["ФЖ-СТ0061 Stella-74",null,null,null,null,null,"STELLA-74",null,"ФЖ Кошка с зелеными глазами"]
[]
[null,null,null,null,null,null,"ЦЕНА:",null,null,null,null,null,null,null,"ЦЕНА:",null,null,null,null,null,null,null,"ЦЕНА:"]
[null,null,null,null,null,null,350,null,null,null,null,null,null,null,350,null,null,null,null,null,null,null,350]
[]
[]
[]
[null,null,null,null,null,null,"КОЛИЧ:",null,null,null,null,null,null,null,"КОЛИЧ:",null,null,null,null,null,null,null,"КОЛИЧ:"]
[null,null,null,null,null,null,{"$f":"A594+B594+C594+D594+E594+F594","v":0},null,null,null,null,null,null,null,{"$f":"I594+J594+K594+L594+M594+N594","v":0},null,null,null,null,null,null,null,{"$f":"Q594+R594+S594+T594+U594+V594","v":0}]
[]
[]
[null,null,null,null,null,null,"СУММА:",null,null,null,null,null,null,null,"СУММА:",null,null,null,null,null,null,null,"СУММА:"]
[null,null,null,null,null,null,{"$f":"G579*G584","v":0},null,null,null,null,null,null,null,{"$f":"O579*O584","v":0},null,null,null,null,null,null,null,{"$f":"W579*W584","v":0}]
[]
[]
[]
[]
["XS","S","M","L","XL",null,null,null,"XS","S","M","L","XL",null,null,null,"XS","S","M","L"]
[]
[]
[]
["ФЖ-СТ0075 Ципа в Лондоне",null,null,null,null,null,null,null,"ФЖ-СТ0052 Он мой",null,null,null,null,null,null,null,"ФЖ-СТ0089 Тигр"]
[]
[null,null,null,null,null,null,"ЦЕНА:",null,null,null,null,null,null,null,"ЦЕНА:",null,null,null,null,null,null,null,"ЦЕНА:"]
[null,null,null,null,null,null,350,null,null,null,null,null,null,null,350,null,null,null,null,null,null,null,350]
[]
[]
[]
[null,null,null,null,null,null,"КОЛИЧ:",null,null,null,null,null,null,null,"КОЛИЧ:",null,null,null,null,null,null,null,"КОЛИЧ:"]
[null,null,null,null,null,null,{"$f":"A615+B615+C615+D615+E615+F615","v":0},null,null,null,null,null,null,null,{"$f":"I615+J615+K615+L615+M615+N615","v":0},null,null,null,null,null,null,null,{"$f":"Q615+R615+S615+T615+U615+V615","v":0}]
[]
[]
[null,null,null,null,null,null,"СУММА:",null,null,null,null,null,null,null,"СУММА:",null,null,null,null,null,null,null,"СУММА:"]
[null,null,null,null,null,null,{"$f":"G600*G605","v":0},null,null,null,null,null,null,null,{"$f":"O600*O605","v":0},null,null,null,null,null,null,null,{"$f":"W600*W605","v":0}]
[]
[]
[]
[]
["XS","S","M","L","XL",null,null,null,"XS","S","M","L","XL",null,null,null,"XS","S","M","L","XL"]
[]
[]
[]
[]
["ФЖ-СТ0088 Кошка с голубыми глазами",null,null,null,null,null,null,null,"ФЖ  Матрешка",null,null,null,null,null,null,null,"ФЖ-СТ0102 Путин белая"]
[]
[null,null,null,null,null,null,"ЦЕНА:",null,null,null,null,null,null,null,"ЦЕНА:",null,null,null,null,null,null,null,"ЦЕНА:"]
[null,null,null,null,null,null,350,null,null,null,null,null,null,null,350,null,null,null,null,null,null,null,350]
[]
[]
[]
[null,null,null,null,null,null,"КОЛИЧ:",null,null,null,null,null,null,null,"КОЛИЧ:",null,null,null,null,null,null,null,"КОЛИЧ:"]
[null,null,null,null,null,null,{"$f":"A637+B637+C637+D637+E637+F637","v":0},null,null,null,null,null,null,null,{"$f":"I637+J637+K637+L637+M637+N637","v":0},null,null,null,null,null,null,null,{"$f":"Q637+R637+S637+T637+U637+V637","v":0}]
[]
[]
[null,null,null,null,null,null,"СУММА:",null,null,null,null,null,null,null,"СУММА:",null,null,null,null,null,null,null,"СУММА:"]
[null,null,null,null,null,null,{"$f":"G622*G627","v":0},null,null,null,null,null,null,null,{"$f":"O622*O627","v":0},null,null,null,null,null,null,null,{"$f":"W622*W627","v":0}]
[]
[]
[]
[]
["XS","S","M","L","XL",null,null,null,"XS","S","M","L",null,null,null,null,"XS","S","M","L","XL"]

{"sheet":"ЖЕНСКИЕ ТОЛСТОВКИ","index":1,"n_rows":443,"n_cols":23,"rows_kept":443,"cut":false,"hidden":false,"merged":[[0,11,0,12]]}
["Получатель:",null,null,null,null,null,null,null,null,null,null,"buytees.ru"]
["ИТОГО:",{"$f":"СумЦвет(A4:W445,W438)","v":0}]
[]
[]
[]
[null,null,null,null,null,null,"ЦЕНА:",null,null,null,null,null,null,null,"ЦЕНА:",null,null,null,null,null,null,null,"ЦЕНА:"]
[]
[]
[]
[]
[null,null,null,null,null,null,"КОЛИЧ:",null,null,null,null,null,null,null,"КОЛИЧ:",null,null,null,null,null,null,null,"КОЛИЧ:"]
[null,null,null,null,null,null,{"$f":"A22+B22+C22+D22+E22+F22","v":0},null,null,null,null,null,null,null,{"$f":"I22+J22+K22+L22+M22+N22","v":0},null,null,null,null,null,null,null,{"$f":"Q22+R22+S22+T22+U22+V22","v":0}]
[]
[]
[null,null,null,null,null,null,"СУММА:",null,null,null,null,null,null,null,"СУММА:",null,null,null,null,null,null,null,"СУММА:"]
[null,null,null,null,null,null,{"$f":"G7*G12","v":0},null,null,null,null,null,null,null,{"$f":"O7*O12","v":0},null,null,null,null,null,null,null,{"$f":"W7*W12","v":0}]
[]
[]
[]
[]
["XS","S","M","L","XL",null,null,null,"XS","S","M","L","XL",null,null,null,"XS","S","M","L","XL"]
[]
[]
[]
[]
[]
["Сан-Франциско",null,null,null,null,null,null,null,"ТЖ-СТ0011 Бруклинский мост",null,null,null,null,null,null,null,"БЖ-СТ A22"]
[]
[null,null,null,null,null,null,"ЦЕНА:",null,null,null,null,null,null,null,"ЦЕНА:",null,null,null,null,null,null,null,"ЦЕНА:"]
[null,null,null,null,null,null,750,null,null,null,null,null,null,null,750,null,null,null,null,null,null,null,900]
[]
[]
[]
[null,null,null,null,null,null,"КОЛИЧ:",null,null,null,null,null,null,null,"КОЛИЧ:",null,null,null,null,null,null,null,"КОЛИЧ:"]
[null,null,null,null,null,null,{"$f":"A45+B45+C45+D45+E45+F45","v":0},null,null,null,null,null,null,null,{"$f":"I45+J45+K45+L45+M45+N45","v":0},null,null,null,null,null,null,null,{"$f":"Q45+R45+S45+T45+U45+V45","v":0}]
[]
[]
[null,null,null,null,null,null,"СУММА:",null,null,null,null,null,null,null,"СУММА:",null,null,null,null,null,null,null,"СУММА:"]
[null,null,null,null,null,null,{"$f":"G30*G35","v":0},null,null,null,null,null,null,null,{"$f":"O30*O35","v":0},null,null,null,null,null,null,null,{"$f":"W30*W35","v":0}]
[]
[]
[]
[]
["XS","S","M","L","XL",null,null,null,"XS","S","M","L","XL",null,null,null,"XS","S","M","L","XL"]
[]
[]
[]
["БЖ-СТ G86",null,null,null,null,null,null,null,"ТЖМ-СТ G86",null,null,null,null,null,null,null,"ТЖМ-СТ N Норт"]
[]
[null,null,null,null,null,null,"ЦЕНА:",null,null,null,null,null,null,null,"ЦЕНА:",null,null,null,null,null,null,null,"ЦЕНА:"]
[null,null,null,null,null,null,900,null,null,null,null,null,null,null,900,null,null,null,null,null,null,null,900]
[]
[]
[]
[null,null,null,null,null,null,"КОЛИЧ:",null,null,null,null,null,null,null,"КОЛИЧ:",null,null,null,null,null,null,null,"КОЛИЧ:"]
[null,null,null,null,null,null,{"$f":"A66+B66+C66+D66+E66+F66","v":0},null,null,null,null,null,null,null,{"$f":"I66+J66+K66+L66+M66+N66","v":0},null,null,null,null,null,null,null,{"$f":"Q66+R66+S66+T66+U66+V66","v":0}]
[]
[]
[null,null,null,null,null,null,"СУММА:",null,null,null,null,null,null,null,"СУММА:",null,null,null,null,null,null,null,"СУММА:"]
[null,null,null,null,null,null,{"$f":"G51*G56","v":0},null,null,null,null,null,null,null,{"$f":"O51*O56","v":0},null,null,null,null,null,null,null,{"$f":"W51*W56","v":0}]
[]
[]
[]
[]
["XS","S","M","L","XL",null,null,null,"XS","S","M","L","XL",null,null,null,"XS","S","M","L","XL"]
[]
[]
[]
["ТЖВ-СТ0005 Лос Анджелес",null,null,null,null,null,null,null,"ТЖ-СТ Волк в наушниках"]
[]
[null,null,null,null,null,null,"ЦЕНА:",null,null,null,null,null,null,null,"ЦЕНА:",null,null,null,null,null,null,null,"ЦЕНА:"]
[null,null,null,null,null,null,750,null,null,null,null,null,null,null,750]
[]
[]
[]
[null,null,null,null,null,null,"КОЛИЧ:",null,null,null,null,null,null,null,"КОЛИЧ:",null,null,null,null,null,null,null,"КОЛИЧ:"]
[null,null,null,null,null,null,{"$f":"A87+B87+C87+D87+E87+F87","v":0},null,null,null,null,null,null,null,{"$f":"I87+J87+K87+L87+M87+N87","v":0},null,null,null,null,null,null,null,{"$f":"Q87+R87+S87+T87+U87+V87","v":0}]
[]
[]
[null,null,null,null,null,null,"СУММА:",null,null,null,null,null,null,null,"СУММА:",null,null,null,null,null,null,null,"СУММА:"]
[null,null,null,null,null,null,{"$f":"G72*G77","v":0},null,null,null,null,null,null,null,{"$f":"O72*O77","v":0},null,null,null,null,null,null,null,{"$f":"W72*W77","v":0}]
[]
[]
[]
[]
["XS","S","M","L","XL",null,null,null,"XS","S","M","L","XL",null,null,null,"XS","S","M","L","XL"]
[]
[]
[]
["СЖ-СТ 86",null,null,null,null,null,null,null,"ТЖ Атлетик"]
[]
[null,null,null,null,null,null,"ЦЕНА:",null,null,null,null,null,null,null,"ЦЕНА:",null,null,null,null,null,null,null,"ЦЕНА:"]
[null,null,null,null,null,null,500,null,null,null,null,null,null,null,800]
[]
[]
[]
[null,null,null,null,null,null,"КОЛИЧ:",null,null,null,null,null,null,null,"КОЛИЧ:",null,null,null,null,null,null,null,"КОЛИЧ:"]
[null,null,null,null,null,null,{"$f":"A108+B108+C108+D108+E108+F108","v":0},null,null,null,null,null,null,null,{"$f":"I108+J108+K108+L108+M108+N108","v":0},null,null,null,null,null,null,null,{"$f":"Q108+R108+S108+T108+U108+V108","v":0}]
[]
[]
[null,null,null,null,null,null,"СУММА:",null,null,null,null,null,null,null,"СУММА:",null,null,null,null,null,null,null,"СУММА:"]
[null,null,null,null,null,null,{"$f":"G93*G98","v":0},null,null,null,null,null,null,null,{"$f":"O93*O98","v":0},null,null,null,null,null,null,null,{"$f":"W93*W98","v":0}]
[]
[]
[]
[]
["XS","S","M","L","XL",null,null,null,"XS","S","M","L","XL",null,null,null,"XS","S","M","L","XL"]
[]
[]
[]
["Барс ",null,null,null,null,null,null,null,"Лайф",null,null,null,null,null,null,null,"Пистолет"]
[]
[null,null,null,null,null,null,"ЦЕНА:",null,null,null,null,null,null,null,"ЦЕНА:",null,null,null,null,null,null,null,"ЦЕНА:"]
[null,null,null,null,null,null,750,null,null,null,null,null,null,null,750,null,null,null,null,null,null,null,750]
[]
[]
[]
[null,null,null,null,null,null,"КОЛИЧ:",null,null,null,null,null,null,null,"КОЛИЧ:",null,null,null,null,null,null,null,"КОЛИЧ:"]
[null,null,null,null,null,null,{"$f":"A129+B129+C129+D129+E129+F129","v":0},null,null,null,null,null,null,null,{"$f":"I129+J129+K129+L129+M129+N129","v":0},null,null,null,null,null,null,null,{"$f":"Q129+R129+S129+T129+U129+V129","v":0}]
[]
[]
[null,null,null,null,null,null,"СУММА:",null,null,null,null,null,null,null,"СУММА:",null,null,null,null,null,null,null,"СУММА:"]
[null,null,null,null,null,null,{"$f":"G114*G119","v":0},null,null,null,null,null,null,null,{"$f":"O114*O119","v":0},null,null,null,null,null,null,null,{"$f":"W114*W119","v":0}]
[]
[]
[]
[]
["XS","S","M","L","XL",null,null,null,"XS","S","M","L","XL",null,null,null,"XS","S","M","L","XL"]
[]
[]
[]
["ТЖ Мишка с сердцем молния вышивка",null,null,null,null,null,null,null,"ТЖ Дисковер",null,null,null,null,null,null,null,"ТЖ Перфекшн молния"]
[]
[null,null,null,null,null,null,"ЦЕНА:",null,null,null,null,null,null,null,"ЦЕНА:",null,null,null,null,null,null,null,"ЦЕНА:"]
[null,null,null,null,null,null,800,null,null,null,null,null,null,null,750,null,null,null,null,null,null,null,800]
[]
[]
[]
[null,null,null,null,null,null,"КОЛИЧ:",null,null,null,null,null,null,null,"КОЛИЧ:",null,null,null,null,null,null,null,"КОЛИЧ:"]
[null,null,null,null,null,null,{"$f":"A150+B150+C150+D150+E150+F150","v":0},null,null,null,null,null,null,null,{"$f":"I150+J150+K150+L150+M150+N150","v":0},null,null,null,null,null,null,null,{"$f":"Q150+R150+S150+T150+U150+V150","v":0}]
[]
[]
[null,null,null,null,null,null,"СУММА:",null,null,null,null,null,null,null,"СУММА:",null,null,null,null,null,null,null,"СУММА:"]
[null,null,null,null,null,null,{"$f":"G135*G140","v":0},null,null,null,null,null,null,null,{"$f":"O135*O140","v":0},null,null,null,null,null,null,null,{"$f":"W135*W140","v":0}]
[]
[]
[]
[]
["XS","S","M","L","XL",null,null,null,"XS","S","M","L","XL",null,null,null,"XS","S","M","L","XL"]
[]
[]
[]
["SW-CT Снежный барс",null,null,null,null,null,null,null,"SW-CT Сова",null,null,null,null,null,null,null,"ТЖ Тигр"]
[]
[null,null,null,null,null,null,"ЦЕНА:",null,null,null,null,null,null,null,"ЦЕНА:",null,null,null,null,null,null,null,"ЦЕНА:"]
[null,null,null,null,null,null,750,null,null,null,null,null,null,null,750,null,null,null,null,null,null,null,750]
[]
[]
[]
[null,null,null,null,null,null,"КОЛИЧ:",null,null,null,null,null,null,null,"КОЛИЧ:",null,null,null,null,null,null,null,"КОЛИЧ:"]
[null,null,null,null,null,null,{"$f":"A171+B171+C171+D171+E171+F171","v":0},null,null,null,null,null,null,null,{"$f":"I171+J171+K171+L171+M171+N171","v":0},null,null,null,null,null,null,null,{"$f":"Q171+R171+S171+T171+U171+V171","v":0}]
[]
[]
[null,null,null,null,null,null,"СУММА:",null,null,null,null,null,null,null,"СУММА:",null,null,null,null,null,null,null,"СУММА:"]
[null,null,null,null,null,null,{"$f":"G156*G161","v":0},null,null,null,null,null,null,null,{"$f":"O156*O161","v":0},null,null,null,null,null,null,null,{"$f":"W156*W161","v":0}]
[]
[]
[]
[]
["XS","S","M","L","XL",null,null,null,"XS","S","M","L","XL",null,null,null,"XS","S","M","L","XL"]
[]
[]
[]
["ТЖБК-СТ0001 Чикаго 32 синий",null,null,null,null,null,null,null,"ТЖБК-СТ0001 Чикаго 32 красный",null,null,null,null,null,null,null,"ТЖБК-СТ0001 Чикаго 32 серый"]
[]
[null,null,null,null,null,null,"ЦЕНА:",null,null,null,null,null,null,null,"ЦЕНА:",null,null,null,null,null,null,null,"ЦЕНА:"]
[null,null,null,null,null,null,750,null,null,null,null,null,null,null,750,null,null,null,null,null,null,null,750]
[]
[]
[]
[null,null,null,null,null,null,"КОЛИЧ:",null,null,null,null,null,null,null,"КОЛИЧ:",null,null,null,null,null,null,null,"КОЛИЧ:"]
[null,null,null,null,null,null,{"$f":"A192+B192+C192+D192+E192+F192","v":0},null,null,null,null,null,null,null,{"$f":"I192+J192+K192+L192+M192+N192","v":0},null,null,null,null,null,null,null,{"$f":"Q192+R192+S192+T192+U192+V192","v":0}]
[]
[]
[null,null,null,null,null,null,"СУММА:",null,null,null,null,null,null,null,"СУММА:",null,null,null,null,null,null,null,"СУММА:"]
[null,null,null,null,null,null,{"$f":"G177*G182","v":0},null,null,null,null,null,null,null,{"$f":"O177*O182","v":0},null,null,null,null,null,null,null,{"$f":"W177*W182","v":0}]
[]
[]
[]
[]
["XS","S","M","L","XL",null,null,null,"XS","S","M","L","XL",null,null,null,"XS","S","M","L","XL"]
[]
[]
[]
[null,null,null,null,null,null,null,null,"ТЖВ-СТ0003 Мишка с красным сердцем"]
[]
[null,null,null,null,null,null,"ЦЕНА:",null,null,null,null,null,null,null,"ЦЕНА:",null,null,null,null,null,null,null,"ЦЕНА:"]
[null,null,null,null,null,null,null,null,null,null,null,null,null,null,750]
[]
[]
[]
[null,null,null,null,null,null,"КОЛИЧ:",null,null,null,null,null,null,null,"КОЛИЧ:",null,null,null,null,null,null,null,"КОЛИЧ:"]
[null,null,null,null,null,null,{"$f":"A213+B213+C213+D213+E213+F213","v":0},null,null,null,null,null,null,null,{"$f":"I213+J213+K213+L213+M213+N213","v":0},null,null,null,null,null,null,null,{"$f":"Q213+R213+S213+T213+U213+V213","v":0}]
[]
[]
[null,null,null,null,null,null,"СУММА:",null,null,null,null,null,null,null,"СУММА:",null,null,null,null,null,null,null,"СУММА:"]
[null,null,null,null,null,null,{"$f":"G198*G203","v":0},null,null,null,null,null,null,null,{"$f":"O198*O203","v":0},null,null,null,null,null,null,null,{"$f":"W198*W203","v":0}]
[]
[]
[]
[]
["XS","S","M","L","XL",null,null,null,null,"S","M",null,null,null,null,null,"XS","S","M","L","XL"]
[]
[]
[]
[null,null,null,null,null,null,null,null,"ТЖВАР-СТ0001  Панда"]
[]
[null,null,null,null,null,null,"ЦЕНА:",null,null,null,null,null,null,null,"ЦЕНА:",null,null,null,null,null,null,null,"ЦЕНА:"]
[null,null,null,null,null,null,null,null,null,null,null,null,null,null,750]
[]
[]
[]
[null,null,null,null,null,null,"КОЛИЧ:",null,null,null,null,null,null,null,"КОЛИЧ:",null,null,null,null,null,null,null,"КОЛИЧ:"]
[null,null,null,null,null,null,{"$f":"A234+B234+C234+D234+E234+F234","v":0},null,null,null,null,null,null,null,{"$f":"I234+J234+K234+L234+M234+N234","v":0},null,null,null,null,null,null,null,{"$f":"Q234+R234+S234+T234+U234+V234","v":0}]
[]
[]
[null,null,null,null,null,null,"СУММА:",null,null,null,null,null,null,null,"СУММА:",null,null,null,null,null,null,null,"СУММА:"]
[null,null,null,null,null,null,{"$f":"G219*G224","v":0},null,null,null,null,null,null,null,{"$f":"O219*O224","v":0},null,null,null,null,null,null,null,{"$f":"W219*W224","v":0}]
[]
[]
[]
[]
["XS","S","M","L","XL",null,null,null,"XS","S","M","L",null,null,null,null,"XS","S","M","L","XL"]
[]
[]
[]
[null,null,null,null,null,null,null,null,"ТЖ-СТ0002 Бабайка",null,null,null,null,null,null,null,"ТЖ-СТ0004 Девушка в тачке"]
[]
[null,null,null,null,null,null,"ЦЕНА:",null,null,null,null,null,null,null,"ЦЕНА:",null,null,null,null,null,null,null,"ЦЕНА:"]
[null,null,null,null,null,null,null,null,null,null,null,null,null,null,750,null,null,null,null,null,null,null,750]
[]
[]
[]
[null,null,null,null,null,null,"КОЛИЧ:",null,null,null,null,null,null,null,"КОЛИЧ:",null,null,null,null,null,null,null,"КОЛИЧ:"]
[null,null,null,null,null,null,{"$f":"A255+B255+C255+D255+E255+F255","v":0},null,null,null,null,null,null,null,{"$f":"I255+J255+K255+L255+M255+N255","v":0},null,null,null,null,null,null,null,{"$f":"Q255+R255+S255+T255+U255+V255","v":0}]
[]
[]
[null,null,null,null,null,null,"СУММА:",null,null,null,null,null,null,null,"СУММА:",null,null,null,null,null,null,null,"СУММА:"]
[null,null,null,null,null,null,{"$f":"G240*G245","v":0},null,null,null,null,null,null,null,{"$f":"O240*O245","v":0},null,null,null,null,null,null,null,{"$f":"W240*W245","v":0}]
[]
[]
[]
[]
["XS","S","M","L",null,null,null,null,"XS","S","M","L","XL",null,null,null,"XS","S","M","L"]
[]
[]
[]
["ТЖ-СТ0015 Матрешка",null,null,null,null,null,null,null,"ТЖ-СТ0033 Флаг Гуд Муд",null,null,null,null,null,null,null,"ТЖ-СТ0025 Серая кошка с голубыми глазами"]
[]
[null,null,null,null,null,null,"ЦЕНА:",null,null,null,null,null,null,null,"ЦЕНА:",null,null,null,null,null,null,null,"ЦЕНА:"]
[null,null,null,null,null,null,750,null,null,null,null,null,null,null,750,null,null,null,null,null,null,null,750]
[]
[]
[]
[null,null,null,null,null,null,"КОЛИЧ:",null,null,null,null,null,null,null,"КОЛИЧ:",null,null,null,null,null,null,null,"КОЛИЧ:"]
[null,null,null,null,null,null,{"$f":"A276+B276+C276+D276+E276+F276","v":0},null,null,null,null,null,null,null,{"$f":"I276+J276+K276+L276+M276+N276","v":0},null,null,null,null,null,null,null,{"$f":"Q276+R276+S276+T276+U276+V276","v":0}]
[]
[]
[null,null,null,null,null,null,"СУММА:",null,null,null,null,null,null,null,"СУММА:",null,null,null,null,null,null,null,"СУММА:"]
[null,null,null,null,null,null,{"$f":"G261*G266","v":0},null,null,null,null,null,null,null,{"$f":"O261*O266","v":0},null,null,null,null,null,null,null,{"$f":"W261*W266","v":0}]
[]
[]
[]
[]
["XS","S","M","L",null,null,null,null,"XS","S","M","L",null,null,null,null,"XS","S","M","L","XL"]
[]
[]
[]
["ТЖ-СТ0012 Котенок с лапками",null,null,null,null,null,null,null,"ТЖМ-СТ0002 Гжель на молнии серая",null,null,null,null,null,null,null,"ТЖМ-СТ0002 Гжель на молнии"]
[]
[null,null,null,null,null,null,"ЦЕНА:",null,null,null,null,null,null,null,"ЦЕНА:",null,null,null,null,null,null,null,"ЦЕНА:"]
[null,null,null,null,null,null,750,null,null,null,null,null,null,null,800,null,null,null,null,null,null,null,800]
[]
[]
[]
[null,null,null,null,null,null,"КОЛИЧ:",null,null,null,null,null,null,null,"КОЛИЧ:",null,null,null,null,null,null,null,"КОЛИЧ:"]
[null,null,null,null,null,null,{"$f":"A297+B297+C297+D297+E297+F297","v":0},null,null,null,null,null,null,null,{"$f":"I297+J297+K297+L297+M297+N297","v":0},null,null,null,null,null,null,null,{"$f":"Q297+R297+S297+T297+U297+V297","v":0}]
[]
[]
[null,null,null,null,null,null,"СУММА:",null,null,null,null,null,null,null,"СУММА:",null,null,null,null,null,null,null,"СУММА:"]
[null,null,null,null,null,null,{"$f":"G282*G287","v":0},null,null,null,null,null,null,null,{"$f":"O282*O287","v":0},null,null,null,null,null,null,null,{"$f":"W282*W287","v":0}]
[]
[]
[]
[]
["XS","S","M","L",null,null,null,null,"XS","S","M","L","XL",null,null,null,"XS","S","М","L","XL"]
[]
[]
[]
["ТЖ-СТ0017 Микки Америка",null,null,null,null,null,null,null,"ТЖМВ-СТ0002 Мишка ромашка вышивка молния",null,null,null,null,null,null,null,"ТЖВ-СТ0002 Мишка ромашка вышивка молния"]
[]
[null,null,null,null,null,null,"ЦЕНА:",null,null,null,null,null,null,null,"ЦЕНА:",null,null,null,null,null,null,null,"ЦЕНА:"]
[null,null,null,null,null,null,750,null,null,null,null,null,null,null,800,null,null,null,null,null,null,null,750]
[]
[]
[]
[null,null,null,null,null,null,"КОЛИЧ:",null,null,null,null,null,null,null,"КОЛИЧ:",null,null,null,null,null,null,null,"КОЛИЧ:"]
[null,null,null,null,null,null,{"$f":"A318+B318+C318+D318+E318+F318","v":0},null,null,null,null,null,null,null,{"$f":"I318+J318+K318+L318+M318+N318","v":0},null,null,null,null,null,null,null,{"$f":"Q318+R318+S318+T318+U318+V318","v":0}]
[]
[]
[null,null,null,null,null,null,"СУММА:",null,null,null,null,null,null,null,"СУММА:",null,null,null,null,null,null,null,"СУММА:"]
[null,null,null,null,null,null,{"$f":"G303*G308","v":0},null,null,null,null,null,null,null,{"$f":"O303*O308","v":0},null,null,null,null,null,null,null,{"$f":"W303*W308","v":0}]
[]
[]
[]
[]
["XS","S","M","L",null,null,null,null,"XS","S","M","L","XL",null,null,null,"XS","S","M","L","XL"]
[]
[]
[]
["ТЖ-СТ0016 Микки — нет проблем розовая",null,null,null,null,null,null,null,"ТЖ-СТ0016 Микки — нет проблем фиолетовый",null,null,null,null,null,null,null,"ТЖ-СТ0016 Микки — нет проблем белая"]
[]
[null,null,null,null,null,null,"ЦЕНА:",null,null,null,null,null,null,null,"ЦЕНА:",null,null,null,null,null,null,null,"ЦЕНА:"]
[null,null,null,null,null,null,750,null,null,null,null,null,null,null,750,null,null,null,null,null,null,null,750]
[]
[]
[]
[null,null,null,null,null,null,"КОЛИЧ:",null,null,null,null,null,null,null,"КОЛИЧ:",null,null,null,null,null,null,null,"КОЛИЧ:"]
[null,null,null,null,null,null,{"$f":"A339+B339+C339+D339+E339+F339","v":0},null,null,null,null,null,null,null,{"$f":"I339+J339+K339+L339+M339+N339","v":0},null,null,null,null,null,null,null,{"$f":"Q339+R339+S339+T339+U339+V339","v":0}]
[]
[]
[null,null,null,null,null,null,"СУММА:",null,null,null,null,null,null,null,"СУММА:",null,null,null,null,null,null,null,"СУММА:"]
[null,null,null,null,null,null,{"$f":"G324*G329","v":0},null,null,null,null,null,null,null,{"$f":"O324*O329","v":0},null,null,null,null,null,null,null,{"$f":"W324*W329","v":0}]
[]
[]
[]
[]
["XS","S","M","L",null,null,null,null,"XS","S","M","L",null,null,null,null,"XS","S","M","L"]
[]
[]
[]
["ТЖ-СТ0019 Мини красный бант",null,null,null,null,null,null,null,"ТЖ-СТ0001 Американский флаг",null,null,null,null,null,null,null,"ТЖ-СТ0016 Микки — нет проблем голубая"]
[]
[null,null,null,null,null,null,"ЦЕНА:",null,null,null,null,null,null,null,"ЦЕНА:",null,null,null,null,null,null,null,"ЦЕНА:"]
[null,null,null,null,null,null,750,null,null,null,null,null,null,null,750,null,null,null,null,null,null,null,750]
[]
[]
[]
[null,null,null,null,null,null,"КОЛИЧ:",null,null,null,null,null,null,null,"КОЛИЧ:",null,null,null,null,null,null,null,"КОЛИЧ:"]
[null,null,null,null,null,null,{"$f":"A360+B360+C360+D360+E360+F360","v":0},null,null,null,null,null,null,null,{"$f":"I360+J360+K360+L360+M360+N360","v":0},null,null,null,null,null,null,null,{"$f":"Q360+R360+S360+T360+U360+V360","v":0}]
[]
[]
[null,null,null,null,null,null,"СУММА:",null,null,null,null,null,null,null,"СУММА:",null,null,null,null,null,null,null,"СУММА:"]
[null,null,null,null,null,null,{"$f":"G345*G350","v":0},null,null,null,null,null,null,null,{"$f":"O345*O350","v":0},null,null,null,null,null,null,null,{"$f":"W345*W350","v":0}]
[]
[]
[]
[]
["XS","S","M","L","XL",null,null,null,"XS","S","M","L",null,null,null,null,"XS","S","M","L"]
[]
[]
[]
["ТЖ-СТ0029 Твитти в кепке голубая",null,null,null,null,null,null,null,"ТЖ-СТ0029 Твитти в кепке розовая",null,null,null,null,null,null,null,"ТЖ-СТ0029 Твитти в кепке серая"]
[]
[null,null,null,null,null,null,"ЦЕНА:",null,null,null,null,null,null,null,"ЦЕНА:",null,null,null,null,null,null,null,"ЦЕНА:"]
[null,null,null,null,null,null,750,null,null,null,null,null,null,null,750,null,null,null,null,null,null,null,750]
[]
[]
[]
[null,null,null,null,null,null,"КОЛИЧ:",null,null,null,null,null,null,null,"КОЛИЧ:",null,null,null,null,null,null,null,"КОЛИЧ:"]
[null,null,null,null,null,null,{"$f":"A381+B381+C381+D381+E381+F381","v":0},null,null,null,null,null,null,null,{"$f":"I381+J381+K381+L381+M381+N381","v":0},null,null,null,null,null,null,null,{"$f":"Q381+R381+S381+T381+U381+V381","v":0}]
[]
[]
[null,null,null,null,null,null,"СУММА:",null,null,null,null,null,null,null,"СУММА:",null,null,null,null,null,null,null,"СУММА:"]
[null,null,null,null,null,null,{"$f":"G366*G371","v":0},null,null,null,null,null,null,null,{"$f":"O366*O371","v":0},null,null,null,null,null,null,null,{"$f":"W366*W371","v":0}]
[]
[]
[]
[]
["XS","S","M","L",null,null,null,null,"XS","S","M","L",null,null,null,null,"XS","S","M","L"]
[]
[]
[]
["ТЖ-СТ0029 Твитти в кепке",null,null,null,null,null,null,null,"ТЖВ-СТ0002 Мишка ромашка вышивка ",null,null,null,null,null,null,null,"ТЖ-СТ0013 Кошка с зелеными глазами"]
[]
[null,null,null,null,null,null,"ЦЕНА:",null,null,null,null,null,null,null,"ЦЕНА:",null,null,null,null,null,null,null,"ЦЕНА:"]
[null,null,null,null,null,null,750,null,null,null,null,null,null,null,750,null,null,null,null,null,null,null,750]
[]
[]
[]
[null,null,null,null,null,null,"КОЛИЧ:",null,null,null,null,null,null,null,"КОЛИЧ:",null,null,null,null,null,null,null,"КОЛИЧ:"]
[null,null,null,null,null,null,{"$f":"A402+B402+C402+D402+E402+F402","v":0},null,null,null,null,null,null,null,{"$f":"I402+J402+K402+L402+M402+N402","v":0},null,null,null,null,null,null,null,{"$f":"Q402+R402+S402+T402+U402+V402","v":0}]
[]
[]
[null,null,null,null,null,null,"СУММА:",null,null,null,null,null,null,null,"СУММА:",null,null,null,null,null,null,null,"СУММА:"]
[null,null,null,null,null,null,{"$f":"G387*G392","v":0},null,null,null,null,null,null,null,{"$f":"O387*O392","v":0},null,null,null,null,null,null,null,{"$f":"W387*W392","v":0}]
[]
[]
[]
[]
["XS","S","M","L",null,null,null,null,"XS","S","M","L","XL",null,null,null,"XS","S",null,"L","XL"]
[]
[]
[]
["ТЖМВ-СТ0002 Мишка ромашка вышивка молния",null,null,null,null,null,null,null,"ТЖ-СТ0027 Стелла 74"]
[]
[null,null,null,null,null,null,"ЦЕНА:",null,null,null,null,null,null,null,"ЦЕНА:",null,null,null,null,null,null,null,"ЦЕНА:"]
[null,null,null,null,null,null,800,null,null,null,null,null,null,null,750]
[]
[]
[]
[null,null,null,null,null,null,"КОЛИЧ:",null,null,null,null,null,null,null,"КОЛИЧ:",null,null,null,null,null,null,null,"КОЛИЧ:"]
[null,null,null,null,null,null,{"$f":"A423+B423+C423+D423+E423+F423","v":0},null,null,null,null,null,null,null,{"$f":"I423+J423+K423+L423+M423+N423","v":0},null,null,null,null,null,null,null,{"$f":"Q423+R423+S423+T423+U423+V423","v":0}]
[]
[]
[null,null,null,null,null,null,"СУММА:",null,null,null,null,null,null,null,"СУММА:",null,null,null,null,null,null,null,"СУММА:"]
[null,null,null,null,null,null,{"$f":"G408*G413","v":0},null,null,null,null,null,null,null,{"$f":"O408*O413","v":0},null,null,null,null,null,null,null,{"$f":"W408*W413","v":0}]
[]
[]
[]
[]
["XS","S","M","L","XL",null,null,null,null,"S",null,null,null,null,null,null,"XS","S","M","L","XL"]
[]
[]
[]
["ТЖ-СТ0008 Желтый мишка фиолетовый",null,null,null,null,null,null,null,"ТЖ-СТ0014 Кролик голубая",null,null,null,null,null,null,null,"ТЖ-СТ0014 розовый"]
[]
[null,null,null,null,null,null,"ЦЕНА:",null,null,null,null,null,null,null,"ЦЕНА:",null,null,null,null,null,null,null,"ЦЕНА:"]
[null,null,null,null,null,null,750,null,null,null,null,null,null,null,750,null,null,null,null,null,null,null,750]
[]
[]
[]
[null,null,null,null,null,null,"КОЛИЧ:",null,null,null,null,null,null,null,"КОЛИЧ:",null,null,null,null,null,null,null,"КОЛИЧ:"]
[null,null,null,null,null,null,{"$f":"A444+B444+C444+D444+E444+F444","v":0},null,null,null,null,null,null,null,{"$f":"I444+J444+K444+L444+M444+N444","v":0},null,null,null,null,null,null,null,{"$f":"Q444+R444+S444+T444+U444+V444","v":0}]
[]
[]
[null,null,null,null,null,null,"СУММА:",null,null,null,null,null,null,null,"СУММА:",null,null,null,null,null,null,null,"СУММА:"]
[null,null,null,null,null,null,{"$f":"G429*G434","v":0},null,null,null,null,null,null,null,{"$f":"O429*O434","v":0},null,null,null,null,null,null,null,{"$f":"W429*W434","v":0}]
[]
[]
[]
[]
["XS","S","M","L",null,null,null,null,null,"S","M",null,null,null,null,null,null,null,"M"]

{"sheet":"МУЖСКИЕ ФУТБОЛКИ И ТОЛСТОВКИ","index":2,"n_rows":273,"n_cols":23,"rows_kept":273,"cut":false,"hidden":false,"merged":[[0,11,0,12]]}
["Получатель:",null,null,null,null,null,null,null,null,null,null,"buytees.ru"]
["ИТОГО:",{"$f":"СумЦвет(A4:W275,W268)","v":0}]
[]
[null,null,null,null,null,null,null,null,null,null,null,null,null,null,null,null,"ФМ-СТ0059 Лев в наушниках"]
[]
[null,null,null,null,null,null,"ЦЕНА:",null,null,null,null,null,null,null,"ЦЕНА:",null,null,null,null,null,null,null,"ЦЕНА:"]
[null,null,null,null,null,null,null,null,null,null,null,null,null,null,null,null,null,null,null,null,null,null,350]
[]
[]
[]
[null,null,null,null,null,null,"КОЛИЧ:",null,null,null,null,null,null,null,"КОЛИЧ:",null,null,null,null,null,null,null,"КОЛИЧ:"]
[null,null,null,null,null,null,{"$f":"A22+B22+C22+D22+E22+F22","v":0},null,null,null,null,null,null,null,{"$f":"I22+J22+K22+L22+M22+N22","v":0},null,null,null,null,null,null,null,{"$f":"Q22+R22+S22+T22+U22+V22","v":0}]
[]
[]
[null,null,null,null,null,null,"СУММА:",null,null,null,null,null,null,null,"СУММА:",null,null,null,null,null,null,null,"СУММА:"]
[null,null,null,null,null,null,{"$f":"G7*G12","v":0},null,null,null,null,null,null,null,{"$f":"O7*O12","v":0},null,null,null,null,null,null,null,{"$f":"W7*W12","v":0}]
[]
[]
[]
[]
["S","M","L","XL","2XL","3XL",null,null,null,null,"M","L","XL",null,null,null,null,null,null,"L","XL"]
[]
[]
[]
["Волк в наушниках ФМВАР-СТ0015",null,null,null,null,null,null,null,"Медведь Россия ФМ-СТ0082",null,null,null,null,null,null,null,"Волк ФМ-СТ0083"]
[]
[null,null,null,null,null,null,"ЦЕНА:",null,null,null,null,null,null,null,"ЦЕНА:",null,null,null,null,null,null,null,"ЦЕНА:"]
[null,null,null,null,null,null,450,null,null,null,null,null,null,null,350,null,null,null,null,null,null,null,350]
[]
[]
[]
[null,null,null,null,null,null,"КОЛИЧ:",null,null,null,null,null,null,null,"КОЛИЧ:",null,null,null,null,null,null,null,"КОЛИЧ:"]
[null,null,null,null,null,null,{"$f":"A43+B43+C43+D43+E43+F43","v":0},null,null,null,null,null,null,null,{"$f":"I43+J43+K43+L43+M43+N43","v":0},null,null,null,null,null,null,null,{"$f":"Q43+R43+S43+T43+U43+V43","v":0}]
[]
[]
[null,null,null,null,null,null,"СУММА:",null,null,null,null,null,null,null,"СУММА:",null,null,null,null,null,null,null,"СУММА:"]
[null,null,null,null,null,null,{"$f":"G28*G33","v":0},null,null,null,null,null,null,null,{"$f":"O28*O33","v":0},null,null,null,null,null,null,null,{"$f":"W28*W33","v":0}]
[]
[]
[]
[]
[null,"S","M","L","XL","XXL",null,null,null,"S","M","L","XL","XXL",null,null,null,"S","M","L","XL","XXL"]
[]
[]
[]
["ФМ-СТ0079 Пират",null,null,null,null,null,null,null,"ФМВАР-СТ0014 Орел",null,null,null,null,null,null,null,"ФМ-СТ0081 Орел в круге"]
[]
[null,null,null,null,null,null,"ЦЕНА:",null,null,null,null,null,null,null,"ЦЕНА:",null,null,null,null,null,null,null,"ЦЕНА:"]
[null,null,null,null,null,null,350,null,null,null,null,null,null,null,450,null,null,null,null,null,null,null,350]
[]
[]
[]
[null,null,null,null,null,null,"КОЛИЧ:",null,null,null,null,null,null,null,"КОЛИЧ:",null,null,null,null,null,null,null,"КОЛИЧ:"]
[null,null,null,null,null,null,{"$f":"A64+B64+C64+D64+E64+F64","v":0},null,null,null,null,null,null,null,{"$f":"I64+J64+K64+L64+M64+N64","v":0},null,null,null,null,null,null,null,{"$f":"Q64+R64+S64+T64+U64+V64","v":0}]
[]
[]
[null,null,null,null,null,null,"СУММА:",null,null,null,null,null,null,null,"СУММА:",null,null,null,null,null,null,null,"СУММА:"]
[null,null,null,null,null,null,{"$f":"G49*G54","v":0},null,null,null,null,null,null,null,{"$f":"O49*O54","v":0},null,null,null,null,null,null,null,{"$f":"W49*W54","v":0}]
[]
[]
[]
[]
[null,"S","M","L","XL","XXL",null,null,null,"S","M","L","XL","XXL",null,null,null,"S","M","L","XL","XXL"]
[]
[]
[]
["ФМ-СТ0074 Медведь пилот",null,null,null,null,null,null,null,"ФМВАР-СТ0001 Лев",null,null,null,null,null,null,null,"ФМ-РТ Ротвейлер"]
[]
[null,null,null,null,null,null,"ЦЕНА:",null,null,null,null,null,null,null,"ЦЕНА:",null,null,null,null,null,null,null,"ЦЕНА:"]
[null,null,null,null,null,null,350,null,null,null,null,null,null,null,450,null,null,null,null,null,null,null,450]
[]
[]
[]
[null,null,null,null,null,null,"КОЛИЧ:",null,null,null,null,null,null,null,"КОЛИЧ:",null,null,null,null,null,null,null,"КОЛИЧ:"]
[null,null,null,null,null,null,{"$f":"A85+B85+C85+D85+E85+F85","v":0},null,null,null,null,null,null,null,{"$f":"I85+J85+K85+L85+M85+N85","v":0},null,null,null,null,null,null,null,{"$f":"Q85+R85+S85+T85+U85+V85","v":0}]
[]
[]
[null,null,null,null,null,null,"СУММА:",null,null,null,null,null,null,null,"СУММА:",null,null,null,null,null,null,null,"СУММА:"]
[null,null,null,null,null,null,{"$f":"G70*G75","v":0},null,null,null,null,null,null,null,{"$f":"O70*O75","v":0},null,null,null,null,null,null,null,{"$f":"W70*W75","v":0}]
[]
[]
[]
[]
[null,"S","M","L","XL","XXL",null,null,null,"S","M","L","XL","XXL",null,null,null,"S","M","L","XL","XXL"]
[]
[]
[]
["ФМ-КН Рыцари",null,null,null,null,null,null,null,"ФМ-СТ0078-1  ВДВ",null,null,null,null,null,null,null,"ФМ-СТ0075 Лев с монетами"]
[]
[null,null,null,null,null,null,"ЦЕНА:",null,null,null,null,null,null,null,"ЦЕНА:",null,null,null,null,null,null,null,"ЦЕНА:"]
[null,null,null,null,null,null,450,null,null,null,null,null,null,null,350,null,null,null,null,null,null,null,350]
[]
[]
[]
[null,null,null,null,null,null,"КОЛИЧ:",null,null,null,null,null,null,null,"КОЛИЧ:",null,null,null,null,null,null,null,"КОЛИЧ:"]
[null,null,null,null,null,null,{"$f":"A106+B106+C106+D106+E106+F106","v":0},null,null,null,null,null,null,null,{"$f":"I106+J106+K106+L106+M106+N106","v":0},null,null,null,null,null,null,null,{"$f":"Q106+R106+S106+T106+U106+V106","v":0}]
[]
[]
[null,null,null,null,null,null,"СУММА:",null,null,null,null,null,null,null,"СУММА:",null,null,null,null,null,null,null,"СУММА:"]
[null,null,null,null,null,null,{"$f":"G91*G96","v":0},null,null,null,null,null,null,null,{"$f":"O91*O96","v":0},null,null,null,null,null,null,null,{"$f":"W91*W96","v":0}]
[]
[]
[]
[]
[null,"S","M","L","XL","XXL",null,null,null,"S","M","L","XL","XXL",null,null,null,"S","M","L","XL","XXL"]
[]
[]
[]
["ФМ-СТ0054 Где все?",null,null,null,null,null,null,null,"ФМВАР-СТ0005 Волк",null,null,null,null,null,null,null,"ФМВАР-СТ0009 Барс"]
[]
[null,null,null,null,null,null,"ЦЕНА:",null,null,null,null,null,null,null,"ЦЕНА:",null,null,null,null,null,null,null,"ЦЕНА:"]
[null,null,null,null,null,null,null,null,null,null,null,null,null,null,450,null,null,null,null,null,null,null,450]
[]
[]
[]
[null,null,null,null,null,null,"КОЛИЧ:",null,null,null,null,null,null,null,"КОЛИЧ:",null,null,null,null,null,null,null,"КОЛИЧ:"]
[null,null,null,null,null,null,{"$f":"A127+B127+C127+D127+E127+F127","v":0},null,null,null,null,null,null,null,{"$f":"I127+J127+K127+L127+M127+N127","v":0},null,null,null,null,null,null,null,{"$f":"Q127+R127+S127+T127+U127+V127","v":0}]
[]
[]
[null,null,null,null,null,null,"СУММА:",null,null,null,null,null,null,null,"СУММА:",null,null,null,null,null,null,null,"СУММА:"]
[null,null,null,null,null,null,{"$f":"G112*G117","v":0},null,null,null,null,null,null,null,{"$f":"O112*O117","v":0},null,null,null,null,null,null,null,{"$f":"W112*W117","v":0}]
[]
[]
[]
[]
[null,"S","M","L","XL",null,null,null,null,"S","M","L","XL",null,null,null,null,"S","M","L","XL"]
[]
[]
[]
["ФМ-СТ0078 Черепа",null,null,null,null,null,null,null,null,null,null,null,null,null,null,null,"ФМ-СТ0021 Кам тугеза"]
[]
[null,null,null,null,null,null,"ЦЕНА:",null,null,null,null,null,null,null,"ЦЕНА:",null,null,null,null,null,null,null,"ЦЕНА:"]
[null,null,null,null,null,null,350,null,null,null,null,null,null,null,null,null,null,null,null,null,null,null,350]
[]
[]
[]
[null,null,null,null,null,null,"КОЛИЧ:",null,null,null,null,null,null,null,"КОЛИЧ:",null,null,null,null,null,null,null,"КОЛИЧ:"]
[null,null,null,null,null,null,{"$f":"A148+B148+C148+D148+E148+F148","v":0},null,null,null,null,null,null,null,{"$f":"I148+J148+K148+L148+M148+N148","v":0},null,null,null,null,null,null,null,{"$f":"Q148+R148+S148+T148+U148+V148","v":0}]
[]
[]
[null,null,null,null,null,null,"СУММА:",null,null,null,null,null,null,null,"СУММА:",null,null,null,null,null,null,null,"СУММА:"]
[null,null,null,null,null,null,{"$f":"G133*G138","v":0},null,null,null,null,null,null,null,{"$f":"O133*O138","v":0},null,null,null,null,null,null,null,{"$f":"W133*W138","v":0}]
[]
[]
[]
[]
[null,"S","M","L","XL",null,null,null,null,"S","M","L","XL",null,null,null,null,"S","M","L","XL"]
[]
[]
[]
["ФМ-СТ Это Россия",null,null,null,null,null,null,null,"ФМ-СТ0029 Мост",null,null,null,null,null,null,null,"ФMВАР-СТ0011 Черепашки"]
[]
[null,null,null,null,null,null,"ЦЕНА:",null,null,null,null,null,null,null,"ЦЕНА:",null,null,null,null,null,null,null,"ЦЕНА:"]
[null,null,null,null,null,null,450,null,null,null,null,null,null,null,350,null,null,null,null,null,null,null,450]
[]
[]
[]
[null,null,null,null,null,null,"КОЛИЧ:",null,null,null,null,null,null,null,"КОЛИЧ:",null,null,null,null,null,null,null,"КОЛИЧ:"]
[null,null,null,null,null,null,{"$f":"A169+B169+C169+D169+E169+F169","v":0},null,null,null,null,null,null,null,{"$f":"I169+J169+K169+L169+M169+N169","v":0},null,null,null,null,null,null,null,{"$f":"Q169+R169+S169+T169+U169+V169","v":0}]
[]
[]
[null,null,null,null,null,null,"СУММА:",null,null,null,null,null,null,null,"СУММА:",null,null,null,null,null,null,null,"СУММА:"]
[null,null,null,null,null,null,{"$f":"G154*G159","v":0},null,null,null,null,null,null,null,{"$f":"O154*O159","v":0},null,null,null,null,null,null,null,{"$f":"W154*W159","v":0}]
[]
[]
[]
[]
[null,"S","M","L","XL",null,null,null,null,"S","M","L","XL",null,null,null,null,"S","M","L","XL"]
[]
[]
[]
["ФМ-СТ0040 Сделано в СССР",null,null,null,null,null,null,null,"ФМ-СТ0003 Бабайка",null,null,null,null,null,null,null,"ФМ-СТ0010 Горилаз"]
[]
[null,null,null,null,null,null,"ЦЕНА:",null,null,null,null,null,null,null,"ЦЕНА:",null,null,null,null,null,null,null,"ЦЕНА:"]
[null,null,null,null,null,null,350,null,null,null,null,null,null,null,350,null,null,null,null,null,null,null,350]
[]
[]
[]
[null,null,null,null,null,null,"КОЛИЧ:",null,null,null,null,null,null,null,"КОЛИЧ:",null,null,null,null,null,null,null,"КОЛИЧ:"]
[null,null,null,null,null,null,{"$f":"A190+B190+C190+D190+E190+F190","v":0},null,null,null,null,null,null,null,{"$f":"I190+J190+K190+L190+M190+N190","v":0},null,null,null,null,null,null,null,{"$f":"Q190+R190+S190+T190+U190+V190","v":0}]
[]
[]
[null,null,null,null,null,null,"СУММА:",null,null,null,null,null,null,null,"СУММА:",null,null,null,null,null,null,null,"СУММА:"]
[null,null,null,null,null,null,{"$f":"G175*G180","v":0},null,null,null,null,null,null,null,{"$f":"O175*O180","v":0},null,null,null,null,null,null,null,{"$f":"W175*W180","v":0}]
[]
[]
[]
[]
[null,"S","M","L","XL",null,null,null,null,"S","M","L","XL",null,null,null,null,"S","M","L","XL"]
[]
[]
[]
["ФМ-ПУ4 Вежливый",null,null,null,null,null,null,null,"ФМ-ПУ4 Вежливый",null,null,null,null,null,null,null,"ФМ-СТ0058 Путин"]
[]
[null,null,null,null,null,null,"ЦЕНА:",null,null,null,null,null,null,null,"ЦЕНА:",null,null,null,null,null,null,null,"ЦЕНА:"]
[null,null,null,null,null,null,350,null,null,null,null,null,null,null,350,null,null,null,null,null,null,null,350]
[]
[]
[]
[null,null,null,null,null,null,"КОЛИЧ:",null,null,null,null,null,null,null,"КОЛИЧ:",null,null,null,null,null,null,null,"КОЛИЧ:"]
[null,null,null,null,null,null,{"$f":"A211+B211+C211+D211+E211+F211","v":0},null,null,null,null,null,null,null,{"$f":"I211+J211+K211+L211+M211+N211","v":0},null,null,null,null,null,null,null,{"$f":"Q211+R211+S211+T211+U211+V211","v":0}]
[]
[]
[null,null,null,null,null,null,"СУММА:",null,null,null,null,null,null,null,"СУММА:",null,null,null,null,null,null,null,"СУММА:"]
[null,null,null,null,null,null,{"$f":"G196*G201","v":0},null,null,null,null,null,null,null,{"$f":"O196*O201","v":0},null,null,null,null,null,null,null,{"$f":"W196*W201","v":0}]
[]
[]
[]
[]
[null,"S","M","L","XL",null,null,null,null,"S","M","L","XL",null,null,null,null,"S","M","L","XL"]
[]
[]
[]
["ФМВАР-СТ0008  Злой медведь",null,null,null,null,null,null,null,"ФМВАР-СТ0007 Горилла"]
[]
[null,null,null,null,null,null,"ЦЕНА:",null,null,null,null,null,null,null,"ЦЕНА:",null,null,null,null,null,null,null,"ЦЕНА:"]
[null,null,null,null,null,null,450,null,null,null,null,null,null,null,450]
[]
[]
[]
[null,null,null,null,null,null,"КОЛИЧ:",null,null,null,null,null,null,null,"КОЛИЧ:",null,null,null,null,null,null,null,"КОЛИЧ:"]
[null,null,null,null,null,null,{"$f":"A232+B232+C232+D232+E232+F232","v":0},null,null,null,null,null,null,null,{"$f":"I232+J232+K232+L232+M232+N232","v":0},null,null,null,null,null,null,null,{"$f":"Q232+R232+S232+T232+U232+V232","v":0}]
[]
[]
[null,null,null,null,null,null,"СУММА:",null,null,null,null,null,null,null,"СУММА:",null,null,null,null,null,null,null,"СУММА:"]
[null,null,null,null,null,null,{"$f":"G217*G222","v":0},null,null,null,null,null,null,null,{"$f":"O217*O222","v":0},null,null,null,null,null,null,null,{"$f":"W217*W222","v":0}]
[]
[]
[]
[]
["S","M","L","XL","2XL","3XL",null,null,null,null,"M","L","XL",null,null,null,null,null,null,"L","XL"]
[]
[]
[]
["ФМВАР-СТ0003 Морская пехота",null,null,null,null,null,null,null,null,null,null,null,null,null,null,null,"Артикул ТМ-СТ0010 Волк в наушниках"]
[]
[null,null,null,null,null,null,"ЦЕНА:",null,null,null,null,null,null,null,"ЦЕНА:",null,null,null,null,null,null,null,"ЦЕНА:"]
[null,null,null,null,null,null,450,null,null,null,null,null,null,null,null,null,null,null,null,null,null,null,800]
[]
[]
[]
[null,null,null,null,null,null,"КОЛИЧ:",null,null,null,null,null,null,null,"КОЛИЧ:",null,null,null,null,null,null,null,"КОЛИЧ:"]
[null,null,null,null,null,null,{"$f":"A253+B253+C253+D253+E253+F253","v":0},null,null,null,null,null,null,null,{"$f":"I253+J253+K253+L253+M253+N253","v":0},null,null,null,null,null,null,null,{"$f":"Q253+R253+S253+T253+U253+V253","v":0}]
[]
[]
[null,null,null,null,null,null,"СУММА:",null,null,null,null,null,null,null,"СУММА:",null,null,null,null,null,null,null,"СУММА:"]
[null,null,null,null,null,null,{"$f":"G238*G243","v":0},null,null,null,null,null,null,null,{"$f":"O238*O243","v":0},null,null,null,null,null,null,null,{"$f":"W238*W243","v":0}]
[]
[]
[]
[]
[null,null,null,"L","XL","XXL",null,null,null,"S","M","L","XL","XXL",null,null,null,"S","M","L","XL","XXL"]
[]
[]
[]
["Артикул ТМ-СТ00112 Часовщик",null,null,null,null,null,null,null,"ТМ-СТ0009 Медведь в шлеме",null,null,null,null,null,null,null,"ТМ-СТ0011 Джокер"]
[]
[null,null,null,null,null,null,"ЦЕНА:",null,null,null,null,null,null,null,"ЦЕНА:",null,null,null,null,null,null,null,"ЦЕНА:"]
[null,null,null,null,null,null,800,null,null,null,null,null,null,null,800,null,null,null,null,null,null,null,800]
[]
[]
[]
[null,null,null,null,null,null,"КОЛИЧ:",null,null,null,null,null,null,null,"КОЛИЧ:",null,null,null,null,null,null,null,"КОЛИЧ:"]
[null,null,null,null,null,null,{"$f":"A274+B274+C274+D274+E274+F274","v":0},null,null,null,null,null,null,null,{"$f":"I274+J274+K274+L274+M274+N274","v":0},null,null,null,null,null,null,null,{"$f":"Q274+R274+S274+T274+U274+V274","v":0}]
[]
[]
[null,null,null,null,null,null,"СУММА:",null,null,null,null,null,null,null,"СУММА:",null,null,null,null,null,null,null,"СУММА:"]
[null,null,null,null,null,null,{"$f":"G259*G264","v":0},null,null,null,null,null,null,null,{"$f":"O259*O264","v":0},null,null,null,null,null,null,null,{"$f":"W259*W264","v":0}]
[]
[]
[]
[]
[null,"S","M","L","XL","XXL",null,null,null,"S","M","L","XL","XXL",null,null,null,"S","M","L","XL","XXL"]

{"sheet":"ХУДИ","index":3,"n_rows":126,"n_cols":23,"rows_kept":126,"cut":false,"hidden":false,"merged":[[0,11,0,12]]}
["Получатель:",null,null,null,null,null,null,null,null,null,null,"buytees.ru"]
["ИТОГО:",{"$f":"СумЦвет(A4:Z499,G37)","v":0}]
[]
["ХЖ Модельная 2015"]
[]
[null,null,null,null,null,null,"ЦЕНА:",null,null,null,null,null,null,null,"ЦЕНА:",null,null,null,null,null,null,null,"ЦЕНА:"]
[null,null,null,null,null,null,800]
[]
[]
[]
[null,null,null,null,null,null,"КОЛИЧ:",null,null,null,null,null,null,null,"КОЛИЧ:",null,null,null,null,null,null,null,"КОЛИЧ:"]
[null,null,null,null,null,null,{"$f":"A23+B22+C22+D22+E22+F22","v":0},null,null,null,null,null,null,null,{"$f":"I22+J22+K22+L22+M22+N22","v":0},null,null,null,null,null,null,null,{"$f":"Q22+R22+S22+T22+U22+V22","v":0}]
[]
[]
[null,null,null,null,null,null,"СУММА:",null,null,null,null,null,null,null,"СУММА:",null,null,null,null,null,null,null,"СУММА:"]
[null,null,null,null,null,null,{"$f":"G7*G12","v":0},null,null,null,null,null,null,null,{"$f":"O7*O12","v":0},null,null,null,null,null,null,null,{"$f":"W7*W12","v":0}]
[]
[]
[]
[]
["XS","S","M","L",null,null,null,null,"XS","S","M","L",null,null,null,null,"XS","S","M","L","XL"]
[]
[]
[]
["ХЖВ-СТ0007 Мишка ромашка фиолетовый",null,null,null,null,null,null,null,"ХЖВ-СТ0007 Мишка ромашка белый",null,null,null,null,null,null,null,"ХЖВ-СТ0006 Тедди вышивка"]
[]
[null,null,null,null,null,null,"ЦЕНА:",null,null,null,null,null,null,null,"ЦЕНА:",null,null,null,null,null,null,null,"ЦЕНА:"]
[null,null,null,null,null,null,800,null,null,null,null,null,null,null,800,null,null,null,null,null,null,null,800]
[]
[]
[]
[null,null,null,null,null,null,"КОЛИЧ:",null,null,null,null,null,null,null,"КОЛИЧ:",null,null,null,null,null,null,null,"КОЛИЧ:"]
[null,null,null,null,null,null,{"$f":"A44+B43+C43+D43+E43+F43","v":0},null,null,null,null,null,null,null,{"$f":"I43+J43+K43+L43+M43+N43","v":0},null,null,null,null,null,null,null,{"$f":"Q43+R43+S43+T43+U43+V43","v":0}]
[]
[]
[null,null,null,null,null,null,"СУММА:",null,null,null,null,null,null,null,"СУММА:",null,null,null,null,null,null,null,"СУММА:"]
[null,null,null,null,null,null,null,null,null,null,null,null,null,null,{"$f":"O28*O33","v":0},null,null,null,null,null,null,null,{"$f":"W28*W33","v":0}]
[]
[]
[]
[]
["XS","S","M","L",null,null,null,null,"XS","S","M","L",null,null,null,null,"XS","S","M","L","XL"]
[]
[]
[]
["ХЖВ-СТ0004 Панда",null,null,null,null,null,null,null,"ХЖ-СТ0004 Мишка лав розовая",null,null,null,null,null,null,null,"ХЖ-СТ0004 Мишка Лав фиолетовый"]
[]
[null,null,null,null,null,null,"ЦЕНА:",null,null,null,null,null,null,null,"ЦЕНА:",null,null,null,null,null,null,null,"ЦЕНА:"]
[null,null,null,null,null,null,800,null,null,null,null,null,null,null,800,null,null,null,null,null,null,null,800]
[]
[]
[]
[null,null,null,null,null,null,"КОЛИЧ:",null,null,null,null,null,null,null,"КОЛИЧ:",null,null,null,null,null,null,null,"КОЛИЧ:"]
[null,null,null,null,null,null,{"$f":"A65+B64+C64+D64+E64+F64","v":0},null,null,null,null,null,null,null,{"$f":"I64+J64+K64+L64+M64+N64","v":0},null,null,null,null,null,null,null,{"$f":"Q64+R64+S64+T64+U64+V64","v":0}]
[]
[]
[null,null,null,null,null,null,"СУММА:",null,null,null,null,null,null,null,"СУММА:",null,null,null,null,null,null,null,"СУММА:"]
[null,null,null,null,null,null,{"$f":"G49*G54","v":0},null,null,null,null,null,null,null,{"$f":"O49*O54","v":0},null,null,null,null,null,null,null,{"$f":"W49*W54","v":0}]
[]
[]
[]
[]
["XS","S","M","L",null,null,null,null,"XS","S","M","L","XL",null,null,null,"XS","S","M","L"]
[]
[]
[]
["ХЖВ-СТ0001 Мишка бантик вышивка розовый",null,null,null,null,null,null,null,"ХЖВ-СТ0001 Мишка бантик вышивка фиолетовый",null,null,null,null,null,null,null,"ХЖВ-СТ0001 Мишка бантик вышивка молочный"]
[]
[null,null,null,null,null,null,"ЦЕНА:",null,null,null,null,null,null,null,"ЦЕНА:",null,null,null,null,null,null,null,"ЦЕНА:"]
[null,null,null,null,null,null,800,null,null,null,null,null,null,null,800,null,null,null,null,null,null,null,800]
[]
[]
[]
[null,null,null,null,null,null,"КОЛИЧ:",null,null,null,null,null,null,null,"КОЛИЧ:",null,null,null,null,null,null,null,"КОЛИЧ:"]
[null,null,null,null,null,null,{"$f":"A86+B85+C85+D85+E85+F85","v":0},null,null,null,null,null,null,null,{"$f":"I85+J85+K85+L85+M85+N85","v":0},null,null,null,null,null,null,null,{"$f":"Q85+R85+S85+T85+U85+V85","v":0}]
[]
[]
[null,null,null,null,null,null,"СУММА:",null,null,null,null,null,null,null,"СУММА:",null,null,null,null,null,null,null,"СУММА:"]
[null,null,null,null,null,null,{"$f":"G70*G75","v":0},null,null,null,null,null,null,null,{"$f":"O70*O75","v":0},null,null,null,null,null,null,null,{"$f":"W70*W75","v":0}]
[]
[]
[]
[]
["XS","S","M","L","XL",null,null,null,"XS","S","M","L","XL",null,null,null,"XS","S","M","L","XL"]
[]
[]
[]
["ХЖВ-СТ0001 Мишка бантик вышивка бирюза",null,null,null,null,null,null,null,"ХЖ-СТ0003 Мишка голубой",null,null,null,null,null,null,null,"ХЖ-СТ0003 Мишка красный"]
[]
[null,null,null,null,null,null,"ЦЕНА:",null,null,null,null,null,null,null,"ЦЕНА:",null,null,null,null,null,null,null,"ЦЕНА:"]
[null,null,null,null,null,null,800,null,null,null,null,null,null,null,800,null,null,null,null,null,null,null,800]
[]
[]
[]
[null,null,null,null,null,null,"КОЛИЧ:",null,null,null,null,null,null,null,"КОЛИЧ:",null,null,null,null,null,null,null,"КОЛИЧ:"]
[null,null,null,null,null,null,{"$f":"A107+B106+C106+D106+E106+F106","v":0},null,null,null,null,null,null,null,{"$f":"I106+J106+K106+L106+M106+N106","v":0},null,null,null,null,null,null,null,{"$f":"Q106+R106+S106+T106+U106+V106","v":0}]
[]
[]
[null,null,null,null,null,null,"СУММА:",null,null,null,null,null,null,null,"СУММА:",null,null,null,null,null,null,null,"СУММА:"]
[null,null,null,null,null,null,{"$f":"G91*G96","v":0},null,null,null,null,null,null,null,{"$f":"O91*O96","v":0},null,null,null,null,null,null,null,{"$f":"W91*W96","v":0}]
[]
[]
[]
[]
["XS","S","M","L",null,null,null,null,"XS","S","M","L",null,null,null,null,null,"S","M","L","XL"]
[]
[]
[]
["ХЖВ-СТ0005 Мишка вышивка молочный",null,null,null,null,null,null,null,"ХЖВ-СТ0005 Мишка вышивка фиолетовый",null,null,null,null,null,null,null,"ХЖВ-СТ0005 Мишка вышивка бирюза"]
[]
[null,null,null,null,null,null,"ЦЕНА:",null,null,null,null,null,null,null,"ЦЕНА:",null,null,null,null,null,null,null,"ЦЕНА:"]
[null,null,null,null,null,null,800,null,null,null,null,null,null,null,800,null,null,null,null,null,null,null,800]
[]
[]
[]
[null,null,null,null,null,null,"КОЛИЧ:",null,null,null,null,null,null,null,"КОЛИЧ:",null,null,null,null,null,null,null,"КОЛИЧ:"]
[null,null,null,null,null,null,{"$f":"A128+B127+C127+D127+E127+F127","v":0},null,null,null,null,null,null,null,{"$f":"I127+J127+K127+L127+M127+N127","v":0},null,null,null,null,null,null,null,{"$f":"Q127+R127+S127+T127+U127+V127","v":0}]
[]
[]
[null,null,null,null,null,null,"СУММА:",null,null,null,null,null,null,null,"СУММА:",null,null,null,null,null,null,null,"СУММА:"]
[null,null,null,null,null,null,{"$f":"G112*G117","v":0},null,null,null,null,null,null,null,{"$f":"O112*O117","v":0},null,null,null,null,null,null,null,{"$f":"W112*W117","v":0}]
[]
[]
[]
[]
["XS","S","M","L",null,null,null,null,"XS","S","M","L",null,null,null,null,null,"S","M","L","XL"]

{"sheet":"Таблица размеров","index":4,"n_rows":19,"n_cols":7,"rows_kept":19,"cut":false,"hidden":false,"merged":[]}
["Таблица размеров"]
[" МУЖЧИНЫ","S","M","L","XL"]
["Российские размеры",46,48,50,52]
[]
[]
["Таблица размеров"]
["ЖЕНЩИНЫ","XS","S","M","L"]
["Российские размеры",42,44,46,48]
[]
[]
["Таблица детских размеров"]
[]
["Возраст ребёнка",3,4,5,6,"7 — 8","9 — 10"]
["Рост в см.","98-104","104-110","110-116","116-122","122-134","134-140"]
["Обхват груди, см",57,58,59,62,"61 — 68","67 — 71"]
["Российские размеры",30,30,32,32,"34 — 36",36]
[]
[]
["Штаны на рост 164-170"]

{"sheet":"ДЕТЯМ","index":5,"n_rows":232,"n_cols":23,"rows_kept":232,"cut":false,"hidden":false,"merged":[[0,11,0,12]]}
["Получатель:",null,null,null,null,null,null,null,null,null,null,"buytees.ru"]
["ИТОГО:",{"$f":"СумЦвет(A5:W234,W227)","v":0}]
[]
[]
[null,null,null,null,null,null,null,null,null,null,null,null,null,null,null,null,"БД-СТ ST"]
[]
[null,null,null,null,null,null,"ЦЕНА:",null,null,null,null,null,null,null,"ЦЕНА:",null,null,null,null,null,null,null,"ЦЕНА:"]
[null,null,null,null,null,null,null,null,null,null,null,null,null,null,null,null,null,null,null,null,null,null,750]
[]
[]
[]
[null,null,null,null,null,null,"КОЛИЧ:",null,null,null,null,null,null,null,"КОЛИЧ:",null,null,null,null,null,null,null,"КОЛИЧ:"]
[null,null,null,null,null,null,{"$f":"A23+B23+C23+D23+E23+F23","v":0},null,null,null,null,null,null,null,{"$f":"I23+J23+K23+L23+M23+N23","v":0},null,null,null,null,null,null,null,{"$f":"Q23+R23+S23+T23+U23+V23","v":0}]
[]
[]
[null,null,null,null,null,null,"СУММА:",null,null,null,null,null,null,null,"СУММА:",null,null,null,null,null,null,null,"СУММА:"]
[null,null,null,null,null,null,{"$f":"G8*G13","v":0},null,null,null,null,null,null,null,{"$f":"O8*O13","v":0},null,null,null,null,null,null,null,{"$f":"W8*W13","v":0}]
[]
[]
[]
[]
[null,null,null,null,null,null,null,null,null,null,null,null,null,null,null,null,null,null,null,"7-8 лет","9-10 лет"]
[]
[]
[]
["ТДМ-СТ Норт",null,null,null,null,null,null,null,"ТДМ-СТ G86",null,null,null,null,null,null,null,"БД-СТ G86"]
[]
[null,null,null,null,null,null,"ЦЕНА:",null,null,null,null,null,null,null,"ЦЕНА:",null,null,null,null,null,null,null,"ЦЕНА:"]
[null,null,null,null,null,null,750,null,null,null,null,null,null,null,750,null,null,null,null,null,null,null,750]
[]
[]
[]
[null,null,null,null,null,null,"КОЛИЧ:",null,null,null,null,null,null,null,"КОЛИЧ:",null,null,null,null,null,null,null,"КОЛИЧ:"]
[null,null,null,null,null,null,{"$f":"A44+B44+C44+D44+E44+F44","v":0},null,null,null,null,null,null,null,{"$f":"I44+J44+K44+L44+M44+N44","v":0},null,null,null,null,null,null,null,{"$f":"Q44+R44+S44+T44+U44+V44","v":0}]
[]
[]
[null,null,null,null,null,null,"СУММА:",null,null,null,null,null,null,null,"СУММА:",null,null,null,null,null,null,null,"СУММА:"]
[null,null,null,null,null,null,{"$f":"G29*G34","v":0},null,null,null,null,null,null,null,{"$f":"O29*O34","v":0},null,null,null,null,null,null,null,{"$f":"W29*W34","v":0}]
[]
[]
[]
[]
[null,null,null,"7-8 лет","9-10 лет",null,null,null,null,null,null,"7-8 лет","9-10 лет",null,null,null,null,null,null,"7-8 лет","9-10 лет"]
[]
[]
[]
[]
[]
[null,null,null,null,null,null,"ЦЕНА:",null,null,null,null,null,null,null,"ЦЕНА:",null,null,null,null,null,null,null,"ЦЕНА:"]
[null,null,null,null,null,null,null,null,null,null,null,null,null,null,null,null,null,null,null,null,null,null,250]
[]
[]
[]
[null,null,null,null,null,null,"КОЛИЧ:",null,null,null,null,null,null,null,"КОЛИЧ:",null,null,null,null,null,null,null,"КОЛИЧ:"]
[null,null,null,null,null,null,{"$f":"A65+B65+C65+D65+E65+F65","v":0},null,null,null,null,null,null,null,{"$f":"I65+J65+K65+L65+M65+N65","v":0},null,null,null,null,null,null,null,{"$f":"Q65+R65+S65+T65+U65+V65","v":0}]
[]
[]
[null,null,null,null,null,null,"СУММА:",null,null,null,null,null,null,null,"СУММА:",null,null,null,null,null,null,null,"СУММА:"]
[null,null,null,null,null,null,{"$f":"G50*G55","v":0},null,null,null,null,null,null,null,{"$f":"O50*O55","v":0},null,null,null,null,null,null,null,{"$f":"W50*W55","v":0}]
[]
[]
[]
[]
[null,null,null,"7-8 лет","9-10 лет",null,null,null,3,4,5,6,null,null,null,null,null,null,null,"5-6 лет","7-8 лет"]
[]
[]
[]
[]
[]
[null,null,null,null,null,null,"ЦЕНА:",null,null,null,null,null,null,null,"ЦЕНА:",null,null,null,null,null,null,null,"ЦЕНА:"]
[null,null,null,null,null,null,250,null,null,null,null,null,null,null,200,null,null,null,null,null,null,null,250]
[]
[]
[]
[null,null,null,null,null,null,"КОЛИЧ:",null,null,null,null,null,null,null,"КОЛИЧ:",null,null,null,null,null,null,null,"КОЛИЧ:"]
[null,null,null,null,null,null,{"$f":"A86+B86+C86+D86+E86+F86","v":0},null,null,null,null,null,null,null,{"$f":"I86+J86+K86+L86+M86+N86","v":0},null,null,null,null,null,null,null,{"$f":"Q86+R86+S86+T86+U86+V86","v":0}]
[]
[]
[null,null,null,null,null,null,"СУММА:",null,null,null,null,null,null,null,"СУММА:",null,null,null,null,null,null,null,"СУММА:"]
[null,null,null,null,null,null,{"$f":"G71*G76","v":0},null,null,null,null,null,null,null,{"$f":"O71*O76","v":0},null,null,null,null,null,null,null,{"$f":"W71*W76","v":0}]
[]
[]
[]
[]
[null,null,null,"5-6 лет","7 -8 лет",null,null,null,null,null,null,"5-6 лет","7-8 лет",null,null,null,null,null,null,"5-6 лет","7-8 лет"]
[]
[]
[]
[null,null,null,null,null,null,null,null,"ТДМ-СТ0001 Гжель молния"]
[]
[null,null,null,null,null,null,"ЦЕНА:",null,null,null,null,null,null,null,"ЦЕНА:",null,null,null,null,null,null,null,"ЦЕНА:"]
[null,null,null,null,null,null,null,null,null,null,null,null,null,null,650]
[]
[]
[]
[null,null,null,null,null,null,"КОЛИЧ:",null,null,null,null,null,null,null,"КОЛИЧ:",null,null,null,null,null,null,null,"КОЛИЧ:"]
[null,null,null,null,null,null,{"$f":"A107+B107+C107+D107+E107+F107","v":0},null,null,null,null,null,null,null,{"$f":"I107+J107+K107+L107+M107+N107","v":0},null,null,null,null,null,null,null,{"$f":"Q107+R107+S107+T107+U107+V107","v":0}]
[]
[]
[null,null,null,null,null,null,"СУММА:",null,null,null,null,null,null,null,"СУММА:",null,null,null,null,null,null,null,"СУММА:"]
[null,null,null,null,null,null,{"$f":"G92*G97","v":0},null,null,null,null,null,null,null,{"$f":"O92*O97","v":0},null,null,null,null,null,null,null,{"$f":"W92*W97","v":0}]
[]
[]
[]
[]
[null,null,null,null,"7 -8 лет","9-10 лет",null,null,null,null,null,null,"7-8 лет","9-10 лет",null,null,3,4,5,6]
[]
[]
[]
[null,null,null,null,null,null,null,null,null,null,null,null,null,null,null,null,"ТДВ-СТ0003 Мишка ромашка голубая"]
[]
[null,null,null,null,null,null,"ЦЕНА:",null,null,null,null,null,null,null,"ЦЕНА:",null,null,null,null,null,null,null,"ЦЕНА:"]
[null,null,null,null,null,null,null,null,null,null,null,null,null,null,null,null,null,null,null,null,null,null,600]
[]
[]
[]
[null,null,null,null,null,null,"КОЛИЧ:",null,null,null,null,null,null,null,"КОЛИЧ:",null,null,null,null,null,null,null,"КОЛИЧ:"]
[null,null,null,null,null,null,{"$f":"A128+B128+C128+D128+E128+F128","v":0},null,null,null,null,null,null,null,{"$f":"I128+J128+K128+L128+M128+N128","v":0},null,null,null,null,null,null,null,{"$f":"Q128+R128+S128+T128+U128+V128","v":0}]
[]
[]
[null,null,null,null,null,null,"СУММА:",null,null,null,null,null,null,null,"СУММА:",null,null,null,null,null,null,null,"СУММА:"]
[null,null,null,null,null,null,{"$f":"G113*G118","v":0},null,null,null,null,null,null,null,{"$f":"O113*O118","v":0},null,null,null,null,null,null,null,{"$f":"W113*W118","v":0}]
[]
[]
[]
[]
[3,4,5,6,null,null,null,null,null,null,null,null,"7-8 лет","9-10 лет",null,null,3,4,5,6]
[]
[]
[]
[]
[]
[null,null,null,null,null,null,"ЦЕНА:",null,null,null,null,null,null,null,"ЦЕНА:",null,null,null,null,null,null,null,"ЦЕНА:"]
[]
[]
[]
[]
[null,null,null,null,null,null,"КОЛИЧ:",null,null,null,null,null,null,null,"КОЛИЧ:",null,null,null,null,null,null,null,"КОЛИЧ:"]
[null,null,null,null,null,null,{"$f":"A149+B149+C149+D149+E149+F149","v":0},null,null,null,null,null,null,null,{"$f":"I149+J149+K149+L149+M149+N149","v":0},null,null,null,null,null,null,null,{"$f":"Q149+R149+S149+T149+U149+V149","v":0}]
[]
[]
[null,null,null,null,null,null,"СУММА:",null,null,null,null,null,null,null,"СУММА:",null,null,null,null,null,null,null,"СУММА:"]
[null,null,null,null,null,null,{"$f":"G134*G139","v":0},null,null,null,null,null,null,null,{"$f":"O134*O139","v":0},null,null,null,null,null,null,null,{"$f":"W134*W139","v":0}]
[]
[]
[]
[]
[3,4,5,6,null,null,null,null,null,null,null,null,"7 -8 лет","9-10 лет",null,null,null,null,null,null,"7-8 лет","9-10 лет"]
[]
[]
[]
[null,null,null,null,null,null,null,null,"ТДВ-СТ0001 Мишка с сердцем вышивка фиолетовый",null,null,null,null,null,null,null,"ТД-СТ0001 Тигренок в кармане молочный"]
[]
[null,null,null,null,null,null,"ЦЕНА:",null,null,null,null,null,null,null,"ЦЕНА:",null,null,null,null,null,null,null,"ЦЕНА:"]
[null,null,null,null,null,null,null,null,null,null,null,null,null,null,600,null,null,null,null,null,null,null,650]
[]
[]
[]
[null,null,null,null,null,null,"КОЛИЧ:",null,null,null,null,null,null,null,"КОЛИЧ:",null,null,null,null,null,null,null,"КОЛИЧ:"]
[null,null,null,null,null,null,{"$f":"A170+B170+C170+D170+E170+F170","v":0},null,null,null,null,null,null,null,{"$f":"I170+J170+K170+L170+M170+N170","v":0},null,null,null,null,null,null,null,{"$f":"Q170+R170+S170+T170+U170+V170","v":0}]
[]
[]
[null,null,null,null,null,null,"СУММА:",null,null,null,null,null,null,null,"СУММА:",null,null,null,null,null,null,null,"СУММА:"]
[null,null,null,null,null,null,{"$f":"G155*G160","v":0},null,null,null,null,null,null,null,{"$f":"O155*O160","v":0},null,null,null,null,null,null,null,{"$f":"W155*W160","v":0}]
[]
[]
[]
[]
[null,null,null,null,"7-8 лет","9-10 лет",null,null,3,4,5,6,null,null,null,null,3,4,5,6,"7-8 лет","9-10 лет"]
[]
[]
[]
["ТД-СТ0001 Тигренок в кармане фиолетовый",null,null,null,null,null,null,null,"ТД-СТ0001 Тигренок в кармане фиолетовый",null,null,null,null,null,null,null,"БД Чикаго красный"]
[]
[null,null,null,null,null,null,"ЦЕНА:",null,null,null,null,null,null,null,"ЦЕНА:",null,null,null,null,null,null,null,"ЦЕНА:"]
[null,null,null,null,null,null,600,null,null,null,null,null,null,null,650,null,null,null,null,null,null,null,650]
[]
[]
[]
[null,null,null,null,null,null,"КОЛИЧ:",null,null,null,null,null,null,null,"КОЛИЧ:",null,null,null,null,null,null,null,"КОЛИЧ:"]
[null,null,null,null,null,null,{"$f":"A191+B191+C191+D191+E191+F191","v":0},null,null,null,null,null,null,null,{"$f":"I191+J191+K191+L191+M191+N191","v":0},null,null,null,null,null,null,null,{"$f":"Q191+R191+S191+T191+U191+V191","v":0}]
[]
[]
[null,null,null,null,null,null,"СУММА:",null,null,null,null,null,null,null,"СУММА:",null,null,null,null,null,null,null,"СУММА:"]
[null,null,null,null,null,null,{"$f":"G176*G181","v":0},null,null,null,null,null,null,null,{"$f":"O176*O181","v":0},null,null,null,null,null,null,null,{"$f":"W176*W181","v":0}]
[]
[]
[]
[]
[3,4,5,6,null,null,null,null,null,null,null,null,"7 -8 лет","9-10 лет",null,null,null,null,null,null,"7 -8 лет","9-10 лет"]
[]
[]
[]
["ТД-СТ0025 Серая кошка с голубыми глазами",null,null,null,null,null,null,null,"ТД-СТ0010 Кошка с зелеными глазами",null,null,null,null,null,null,null,"БД Чикаго синий"]
[]
[null,null,null,null,null,null,"ЦЕНА:",null,null,null,null,null,null,null,"ЦЕНА:",null,null,null,null,null,null,null,"ЦЕНА:"]
[null,null,null,null,null,null,650,null,null,null,null,null,null,null,650,null,null,null,null,null,null,null,650]
[]
[]
[]
[null,null,null,null,null,null,"КОЛИЧ:",null,null,null,null,null,null,null,"КОЛИЧ:",null,null,null,null,null,null,null,"КОЛИЧ:"]
[null,null,null,null,null,null,{"$f":"A212+B212+C212+D212+E212+F212","v":0},null,null,null,null,null,null,null,{"$f":"I212+J212+K212+L212+M212+N212","v":0},null,null,null,null,null,null,null,{"$f":"Q212+R212+S212+T212+U212+V212","v":0}]
[]
[]
[null,null,null,null,null,null,"СУММА:",null,null,null,null,null,null,null,"СУММА:",null,null,null,null,null,null,null,"СУММА:"]
[null,null,null,null,null,null,{"$f":"G197*G202","v":0},null,null,null,null,null,null,null,{"$f":"O197*O202","v":0},null,null,null,null,null,null,null,{"$f":"W197*W202","v":0}]
[]
[]
[]
[]
[null,null,null,null,"7 -8 лет","9-10 лет",null,null,null,null,null,null,"7 -8 лет","9-10 лет",null,null,null,null,null,null,"7 -8 лет","9-10 лет"]
[]
[]
[]
[]
[]
[null,null,null,null,null,null,"ЦЕНА:",null,null,null,null,null,null,null,"ЦЕНА:",null,null,null,null,null,null,null,"ЦЕНА:"]
[null,null,null,null,null,null,null,null,null,null,null,null,null,null,null,null,null,null,null,null,null,null,650]
[]
[]
[]
[null,null,null,null,null,null,"КОЛИЧ:",null,null,null,null,null,null,null,"КОЛИЧ:",null,null,null,null,null,null,null,"КОЛИЧ:"]
[null,null,null,null,null,null,{"$f":"A233+B233+C233+D233+E233+F233","v":0},null,null,null,null,null,null,null,{"$f":"I233+J233+K233+L233+M233+N233","v":0},null,null,null,null,null,null,null,{"$f":"Q233+R233+S233+T233+U233+V233","v":0}]
[]
[]
[null,null,null,null,null,null,"СУММА:",null,null,null,null,null,null,null,"СУММА:",null,null,null,null,null,null,null,"СУММА:"]
[null,null,null,null,null,null,{"$f":"G218*G223","v":0},null,null,null,null,null,null,null,{"$f":"O218*O223","v":0},null,null,null,null,null,null,null,{"$f":"W218*W223","v":0}]
[]
[]
[]
[]
[null,null,null,null,"7 -8 лет","9-10 лет",null,null,null,null,null,null,"7 -8 лет","9-10 лет",null,null,null,null,null,null,"7 -8 лет","9-10 лет"]

{"sheet":"Толстовки с мехом унисекс","index":6,"n_rows":43,"n_cols":23,"rows_kept":43,"cut":false,"hidden":false,"merged":[[0,11,0,12]]}
["Получатель:",null,null,null,null,null,null,null,null,null,null,"buytees.ru"]
["ИТОГО:",{"$f":"СумЦвет(A5:W45,W38)","v":0}]
[]
[]
["Британия ТЖ-МЕХ-СТ0002",null,null,null,null,null,null,null,"Компас темный М-Мех-СТ0001",null,null,null,null,null,null,null,"Компас ТМ-Мех-СТ0001"]
[]
[null,null,null,null,null,null,"ЦЕНА:",null,null,null,null,null,null,null,"ЦЕНА:",null,null,null,null,null,null,null,"ЦЕНА:"]
[null,null,null,null,null,null,1500,null,null,null,null,null,null,null,1500,null,null,null,null,null,null,null,1500]
[]
[]
[]
[null,null,null,null,null,null,"КОЛИЧ:",null,null,null,null,null,null,null,"КОЛИЧ:",null,null,null,null,null,null,null,"КОЛИЧ:"]
[null,null,null,null,null,null,{"$f":"A23+B23+C23+D23+E23+F23","v":0},null,null,null,null,null,null,null,{"$f":"I23+J23+K23+L23+M23+N23","v":0},null,null,null,null,null,null,null,{"$f":"Q23+R23+S23+T23+U23+V23","v":0}]
[]
[]
[null,null,null,null,null,null,"СУММА:",null,null,null,null,null,null,null,"СУММА:",null,null,null,null,null,null,null,"СУММА:"]
[null,null,null,null,null,null,{"$f":"G8*G13","v":0},null,null,null,null,null,null,null,{"$f":"O8*O13","v":0},null,null,null,null,null,null,null,{"$f":"W8*W13","v":0}]
[]
[]
[]
[]
["S","M","L","XL",null,null,null,null,"S","M","L","XL",null,null,null,null,"S","M","L","XL"]
[]
[]
[]
["Шторм ТМ-Мех-СТ0002",null,null,null,null,null,null,null,"YAN ТЖ-МЕХ-СТ0001"]
[]
[null,null,null,null,null,null,"ЦЕНА:",null,null,null,null,null,null,null,"ЦЕНА:",null,null,null,null,null,null,null,"ЦЕНА:"]
[null,null,null,null,null,null,1500,null,null,null,null,null,null,null,1500]
[]
[]
[]
[null,null,null,null,null,null,"КОЛИЧ:",null,null,null,null,null,null,null,"КОЛИЧ:",null,null,null,null,null,null,null,"КОЛИЧ:"]
[null,null,null,null,null,null,{"$f":"A44+B44+C44+D44+E44+F44","v":0},null,null,null,null,null,null,null,{"$f":"I44+J44+K44+L44+M44+N44","v":0},null,null,null,null,null,null,null,{"$f":"Q44+R44+S44+T44+U44+V44","v":0}]
[]
[]
[null,null,null,null,null,null,"СУММА:",null,null,null,null,null,null,null,"СУММА:",null,null,null,null,null,null,null,"СУММА:"]
[null,null,null,null,null,null,{"$f":"G29*G34","v":0},null,null,null,null,null,null,null,{"$f":"O29*O34","v":0},null,null,null,null,null,null,null,{"$f":"W29*W34","v":0}]
[]
[]
[]
[]
["S","M","L","XL",null,null,null,null,"S","M","L","XL"]